{"text_format":"1","workbook":"xlsx","n_sheets":33,"sheets":["00","1","2","3","4","5","6","7","8","9","10","11","12","13","14","15","16","17","18","19","20","21","22","23","24","25","26","27","28","29","30","31","32"],"not_rendered":{"charts":0,"images":0,"macros":1,"external_links":0,"defined_names":0,"comments":0,"pivot_tables":0},"unopened":[],"bounds":{"document_bytes":16777216,"sheet_cells":100000,"rows_first":2000,"rows_last":500,"rows_between":2000,"halvings":0,"cell_chars":16384,"cell_head_chars":4096},"cells_cut":0,"cells_raw":0,"read":"whole","date_system":"1900"}

{"sheet":"00","index":0,"n_rows":58,"n_cols":5,"rows_kept":58,"cut":false,"hidden":false,"merged":[[46,2,46,3],[47,2,47,3],[48,2,48,3],[42,2,42,3],[0,2,0,5],[1,2,1,5],[43,2,43,3],[44,2,44,3],[45,2,45,3]]}
[1,"Введите обект ","название объекта"]
[{"$f":"A1+1","v":2},"Введите адрес","полный адрес объекта"]
[{"$f":"A2+1","v":3},"Введите город","г. Москва"]
[4,"Ведите дату","\"____\"________________ 200__г."]
[]
[{"$f":"A4+1","v":5},"Авторский надзор","Название организации, должность, Фамилия И.О."]
[{"$f":"A6+1","v":6},"Генеральный подрядчик","Название организации, должность, Фамилия И.О."]
[{"$f":"A7+1","v":7},"Заказчик","Название организации, должность, Фамилия И.О."]
[8,"Монтажной организации","Название организации, должность, Фамилия И.О."]
[9,"Эксплуатирующей организации","Название организации, должность, Фамилия И.О."]
[]
[{"$f":"A10+1","v":10},"Введите номер проекта","полный номер объекта"]
[11,"Введите номера систем","номера систем П1 и т.д."]
[12,"Введите номера систем ВЕ","номера систем ВЕ1 и т.д."]
[13,"Введите номера кондиционеров","номера систем К1 и т.д."]
[]
[null,"Акты по номерам","Вентиляция"]
[null,1,"Акт индивидуального испытания оборудования.",null,"Перейти"]
[null,{"$f":"B18+1","v":2},"Акт приемки систем вентиляции к наладке.",null,"Перейти"]
[null,"Фрма ИГАСН                    3","Акт приемки систем приточно-вытяжной вентиляции.",null,"Перейти"]
[null,4,"Акт приемки систем естественной вентиляции.",null,"Перейти"]
[null,"Форма Мосгортехнадзор     31","Акт приемки систем приточно-вытяжной вентиляции.",null,"Перейти"]
[]
[null,null,"Отопление/теплоснабжение"]
[null,5,"Акт гидравлического испытания системы отопления.",null,"Перейти"]
[null,{"$f":"B25+1","v":6},"Акт гидравлического испытания системы теплоснабжения.",null,"Перейти"]
[null,7,"Акт приемки системы отопления к наладке.",null,"Перейти"]
[null,8,"Акт приемки системы отопления к эксплуатации.",null,"Перейти"]
[null,9,"Акт приемки системы теплоснабжения к наладке.",null,"Перейти"]
[null,10,"Акт приемки системы теплоснабжения к эксплуатации.",null,"Перейти"]
[null,11,"Акт промывки системы отопления.",null,"Перейти"]
[null,12,"Акт промывки системы теплоснабжения.",null,"Перейти"]
[null,13,"Акт промывки узла ввода.",null,"Перейти"]
[]
[null,null,"Холодоснабжение"]
[null,26,"Акт гидравлического испытания системы холодоснабжения.",null,"Перейти"]
[null,27,"Акт приемки системы холодоснабжения к наладке.",null,"Перейти"]
[null,28,"Акт приемки системы холодоснабжения к эксплуатации.",null,"Перейти"]
[null,29,"Акт промывки системы холодоснабжения.",null,"Перейти"]
[]
[]
[null,null,"Канализация"]
[null,14,"Акт приемки системы выпусков внутреннего водостока из здания.",null,"Перейти"]
[null,15,"Акт приемки системы выпусков внутренней канализации из здания.",null,"Перейти"]
[null,16,"Акт приемки системы хозяйственного и горячего водоснабжения.",null,"Перейти"]
[null,17,"Акт гидравлического испытания системы холодного водоснабжения.",null,"Перейти"]
[null,18,"Акт гидравлического испытания системы горячего водоснабжения.",null,"Перейти"]
[null,19,"Акт промывки системы холодного водоснабжения.",null,"Перейти"]
[null,20,"Акт промывки системы горячего водоснабжения.",null,"Перейти"]
[]
[null,null,"Прочее"]
[null,21,"Акт приемки системы кондиционирования воздуха.",null,"Перейти"]
[null,22,"Акт передачи исполнительной документации",null,"Перейти"]
[null,23,"Скрытые работы.",null,"Перейти"]
[null,24,"Акт замеров воздуха",null,"Перейти"]
[null,25,"Акт передачи оборудования",null,"Перейти"]
[null,30,"Акт приемки дополнительных работ",null,"Перейти"]
[null,32,"Проверки эффективности работы вентиляционных систем",null,"Перейти"]

{"sheet":"1","index":1,"n_rows":51,"n_cols":19,"rows_kept":51,"cut":false,"hidden":false,"merged":[[0,0,0,23],[1,0,1,23],[3,11,3,24],[5,0,5,22],[7,0,8,4],[7,5,7,24],[8,5,8,24],[3,0,3,9],[9,0,10,4],[9,5,9,24],[10,5,10,24],[11,0,12,4],[11,5,11,24],[12,5,12,24],[13,0,14,4],[13,5,13,24],[14,5,14,24],[15,0,16,4],[15,5,15,24],[16,5,16,24],[23,0,23,12],[18,0,18,23],[19,0,19,24],[20,0,20,24],[21,0,21,2],[21,3,21,24],[22,3,22,24],[50,0,50,9],[50,10,50,24],[43,0,43,9],[44,0,44,9],[44,10,44,24],[45,0,45,9],[46,0,46,9],[46,10,46,24],[29,1,29,23],[47,0,47,9],[48,0,48,9],[48,10,48,24],[49,0,49,9],[41,0,41,9],[42,0,42,9],[42,10,42,24],[35,1,35,24],[32,0,34,0],[32,1,34,24],[24,1,24,17],[24,18,24,24],[25,1,25,17],[27,1,27,23],[28,1,28,23]]}
["Акт №______"]
[{"$f":"'00'!C18","v":"Акт индивидуального испытания оборудования."}]
[]
[{"$f":"'00'!C3","v":"г. Москва"},null,null,null,null,null,null,null,null,null,null,{"$f":"'00'!C4","v":"\"____\"________________ 200__г."}]
[]
["Комиссия в составе представителей:"]
[]
["Авторского надзора",null,null,null,null,{"$f":"'00'!C6","v":"Название организации, должность, Фамилия И.О."}]
[null,null,null,null,null,"(название организации, должность, ФИО)"]
["Генерального подрядчика",null,null,null,null,{"$f":"'00'!C7","v":"Название организации, должность, Фамилия И.О."}]
[null,null,null,null,null,{"$f":"F9","v":"(название организации, должность, ФИО)"}]
["Заказчика",null,null,null,null,{"$f":"'00'!C8","v":"Название организации, должность, Фамилия И.О."}]
[null,null,null,null,null,{"$f":"F11","v":"(название организации, должность, ФИО)"}]
["Монтажной организации",null,null,null,null,{"$f":"'00'!C9","v":"Название организации, должность, Фамилия И.О."}]
[null,null,null,null,null,{"$f":"F9","v":"(название организации, должность, ФИО)"}]
["Эксплуатирующей организации",null,null,null,null,{"$f":"'00'!C10","v":"Название организации, должность, Фамилия И.О."}]
[null,null,null,null,null,{"$f":"F9","v":"(название организации, должность, ФИО)"}]
[]
["На объекте:"]
[{"$f":"'00'!C1","v":"название объекта"}]
["(указать название объекта)"]
["по адресу:",null,null,{"$f":"'00'!C2","v":"полный адрес объекта"}]
[null,null,null,"(указать адрес объекта)"]
["Составили акт о нижеследующем:"]
["1.","Работы выполнены согласно требованиям СНиП и проекта",null,null,null,null,null,null,null,null,null,null,null,null,null,null,null,null,{"$f":"'00'!C12","v":"полный номер объекта"}]
["2.","Все мероприятия по звуко- и виброизоляции выполнены."]
["3.","Оборудование систем"]
[null,{"$f":"'00'!C13","v":"номера систем П1 и т.д."}]
[null,"(перечислить номера систем)"]
[null,"прошло обкатку согласно техническим требованиям и паспорту."]
[]
[null,"Решение комиссии:"]
["1.","В результате обкатки оборудования перечисленных систем установлено, что требования по его сборке и монтажу соблюдены в полном объеме. Неисправности в работе оборудования не обнаружены"]
[]
[]
["2.","Оборудование считать принятым к эксплуатации"]
[]
[]
[]
[]
[]
[{"$f":"A8","v":"Авторского надзора"}]
[{"$f":"F8","v":"Название организации, должность, Фамилия И.О."},null,null,null,null,null,null,null,null,null,"(подпись, расшифровка)"]
[{"$f":"A10","v":"Генерального подрядчика"}]
[{"$f":"F10","v":"Название организации, должность, Фамилия И.О."},null,null,null,null,null,null,null,null,null,{"$f":"K43","v":"(подпись, расшифровка)"}]
[{"$f":"A12","v":"Заказчика"}]
[{"$f":"F12","v":"Название организации, должность, Фамилия И.О."},null,null,null,null,null,null,null,null,null,{"$f":"K45","v":"(подпись, расшифровка)"}]
[{"$f":"A14","v":"Монтажной организации"}]
[{"$f":"F14","v":"Название организации, должность, Фамилия И.О."},null,null,null,null,null,null,null,null,null,{"$f":"K47","v":"(подпись, расшифровка)"}]
[{"$f":"A16","v":"Эксплуатирующей организации"}]
[{"$f":"F16","v":"Название организации, должность, Фамилия И.О."},null,null,null,null,null,null,null,null,null,{"$f":"K49","v":"(подпись, расшифровка)"}]

{"sheet":"2","index":2,"n_rows":50,"n_cols":12,"rows_kept":50,"cut":false,"hidden":false,"merged":[[27,0,27,24],[28,0,28,24],[29,0,29,24],[7,0,8,4],[7,5,7,24],[8,5,8,24],[9,0,10,4],[9,5,9,24],[10,5,10,24],[11,0,12,4],[11,5,11,24],[12,5,12,24],[13,0,14,4],[13,5,13,24],[14,5,14,24],[15,0,16,4],[0,0,0,23],[1,0,1,23],[3,0,3,9],[3,11,3,24],[5,0,5,22],[15,5,15,24],[16,5,16,24],[23,0,24,24],[25,0,25,13],[25,14,25,24],[18,0,18,23],[19,0,19,24],[20,0,20,24],[21,0,21,2],[21,3,21,24],[22,3,22,24],[49,0,49,9],[49,10,49,24],[42,0,42,9],[43,0,43,9],[43,10,43,24],[44,0,44,9],[45,0,45,9],[45,10,45,24],[31,4,31,13],[46,0,46,9],[47,0,47,9],[47,10,47,24],[48,0,48,9],[35,0,37,0],[35,1,37,24],[40,0,40,9],[41,0,41,9],[41,10,41,24],[32,1,32,14],[31,1,31,3]]}
["Акт №______"]
[{"$f":"'00'!C19","v":"Акт приемки систем вентиляции к наладке."}]
[]
[{"$f":"'00'!C3","v":"г. Москва"},null,null,null,null,null,null,null,null,null,null,{"$f":"'00'!C4","v":"\"____\"________________ 200__г."}]
[]
["Комиссия в составе представителей:"]
[]
["Авторского надзора",null,null,null,null,{"$f":"'00'!C6","v":"Название организации, должность, Фамилия И.О."}]
[null,null,null,null,null,"(название организации, должность, ФИО)"]
["Генерального подрядчика",null,null,null,null,{"$f":"'00'!C7","v":"Название организации, должность, Фамилия И.О."}]
[null,null,null,null,null,{"$f":"F9","v":"(название организации, должность, ФИО)"}]
["Заказчика",null,null,null,null,{"$f":"'00'!C8","v":"Название организации, должность, Фамилия И.О."}]
[null,null,null,null,null,{"$f":"F11","v":"(название организации, должность, ФИО)"}]
["Монтажной организации",null,null,null,null,{"$f":"'00'!C9","v":"Название организации, должность, Фамилия И.О."}]
[null,null,null,null,null,{"$f":"F9","v":"(название организации, должность, ФИО)"}]
["Эксплуатирующей организации",null,null,null,null,{"$f":"'00'!C10","v":"Название организации, должность, Фамилия И.О."}]
[null,null,null,null,null,{"$f":"F9","v":"(название организации, должность, ФИО)"}]
[]
["На объекте:"]
[{"$f":"'00'!C1","v":"название объекта"}]
["(указать название объекта)"]
["по адресу:",null,null,{"$f":"'00'!C2","v":"полный адрес объекта"}]
[null,null,null,"(указать адрес объекта)"]
["Произвели приемку приточно-вытяжной вентиляции. Осмотром вентиляционных систем и проверкой установленного оборудования в действии установлено, что вентиляционные "]
[]
["системы смонтированны согласно СНиП и проекта."]
[]
["Подрядчиком представлены следующие системы:"]
[{"$f":"'00'!C13","v":"номера систем П1 и т.д."}]
["(указать номера систем)"]
["Подрядчиком представлена следующая документация:"]
["1.","Проект",null,null,{"$f":"'00'!C12","v":"полный номер объекта"}]
["2.","Акт индивидуального испытания оборудования"]
[]
[null,"Решение комиссии:"]
["1.","В результате осмотра, проверки в действии и предъявленной документации системы приточно-вытяжной вентиляции считать принятыми к наладке."]
[]
[]
[]
[]
[{"$f":"A8","v":"Авторского надзора"}]
[{"$f":"F8","v":"Название организации, должность, Фамилия И.О."},null,null,null,null,null,null,null,null,null,"(подпись, расшифровка)"]
[{"$f":"A10","v":"Генерального подрядчика"}]
[{"$f":"F10","v":"Название организации, должность, Фамилия И.О."},null,null,null,null,null,null,null,null,null,{"$f":"K42","v":"(подпись, расшифровка)"}]
[{"$f":"A12","v":"Заказчика"}]
[{"$f":"F12","v":"Название организации, должность, Фамилия И.О."},null,null,null,null,null,null,null,null,null,{"$f":"K44","v":"(подпись, расшифровка)"}]
[{"$f":"A14","v":"Монтажной организации"}]
[{"$f":"F14","v":"Название организации, должность, Фамилия И.О."},null,null,null,null,null,null,null,null,null,{"$f":"K46","v":"(подпись, расшифровка)"}]
[{"$f":"A16","v":"Эксплуатирующей организации"}]
[{"$f":"F16","v":"Название организации, должность, Фамилия И.О."},null,null,null,null,null,null,null,null,null,{"$f":"K48","v":"(подпись, расшифровка)"}]

{"sheet":"3","index":3,"n_rows":49,"n_cols":19,"rows_kept":49,"cut":false,"hidden":false,"merged":[[7,0,8,4],[7,5,7,24],[8,5,8,24],[0,0,0,23],[1,0,1,23],[3,0,3,9],[3,11,3,24],[5,0,5,22],[2,18,2,24],[9,0,10,4],[9,5,9,24],[10,5,10,24],[11,0,12,4],[11,5,11,24],[12,5,12,24],[22,3,22,24],[13,0,14,4],[13,5,13,24],[14,5,14,24],[15,0,16,4],[15,5,15,24],[16,5,16,24],[18,0,18,23],[19,0,19,24],[20,0,20,24],[21,0,21,2],[21,3,21,24],[23,0,24,24],[30,1,30,14],[26,0,26,24],[27,0,27,24],[28,0,28,24],[25,0,25,2],[25,3,25,11],[25,12,25,24],[45,0,45,9],[34,0,36,0],[34,1,36,24],[39,0,39,9],[40,0,40,9],[40,10,40,24],[41,0,41,9],[31,1,31,20],[42,0,42,9],[42,10,42,24],[43,0,43,9],[44,0,44,9],[44,10,44,24],[46,0,46,9],[46,10,46,24],[47,0,47,9],[48,0,48,9],[48,10,48,24]]}
["Акт №______"]
[{"$f":"'00'!C20","v":"Акт приемки систем приточно-вытяжной вентиляции."}]
[null,null,null,null,null,null,null,null,null,null,null,null,null,null,null,null,null,null,"Форма ИГАСН №30/99"]
[{"$f":"'00'!C3","v":"г. Москва"},null,null,null,null,null,null,null,null,null,null,{"$f":"'00'!C4","v":"\"____\"________________ 200__г."}]
[]
["Комиссия в составе представителей:"]
[]
["Авторского надзора",null,null,null,null,{"$f":"'00'!C6","v":"Название организации, должность, Фамилия И.О."}]
[null,null,null,null,null,"(название организации, должность, ФИО)"]
["Генерального подрядчика",null,null,null,null,{"$f":"'00'!C7","v":"Название организации, должность, Фамилия И.О."}]
[null,null,null,null,null,{"$f":"F9","v":"(название организации, должность, ФИО)"}]
["Заказчика",null,null,null,null,{"$f":"'00'!C8","v":"Название организации, должность, Фамилия И.О."}]
[null,null,null,null,null,{"$f":"F11","v":"(название организации, должность, ФИО)"}]
["Монтажной организации",null,null,null,null,{"$f":"'00'!C9","v":"Название организации, должность, Фамилия И.О."}]
[null,null,null,null,null,{"$f":"F9","v":"(название организации, должность, ФИО)"}]
["Эксплуатирующей организации",null,null,null,null,{"$f":"'00'!C10","v":"Название организации, должность, Фамилия И.О."}]
[null,null,null,null,null,{"$f":"F9","v":"(название организации, должность, ФИО)"}]
[]
["На объекте:"]
[{"$f":"'00'!C1","v":"название объекта"}]
["(указать название объекта)"]
["по адресу:",null,null,{"$f":"'00'!C2","v":"полный адрес объекта"}]
[null,null,null,"(указать адрес объекта)"]
["Произвели приемку приточно-вытяжной вентиляции. Осмотром вентиляционных систем и проверкой установленного оборудования в действии установлено, что вентиляционные системы смонтированны согласно СНиП и проекта. Все противопожарные и санитарно-гигиенические нормы соблюдены и выполнены согласно рабочим чертежам"]
[]
["проекта",null,null,{"$f":"'00'!C12","v":"полный номер объекта"},null,null,null,null,null,null,null,null," и СНиП."]
["Подрядчиком представлены следующие системы:"]
[{"$f":"'00'!C13","v":"номера систем П1 и т.д."}]
["(указать номера систем)"]
["Подрядчиком представлена следующая документация:"]
["1.","Акт индивидуального испытания оборудования"]
["2.","Паспорта вентиляционных систем (исполнительная документация)"]
[]
[null,"Решение комиссии:"]
["1.","В результате осмотра, проверки в действии и предъявленной документации системы приточно-вытяжной вентиляции считать принятыми к эксплуатационной наладке."]
[]
[]
[]
[]
[{"$f":"A8","v":"Авторского надзора"}]
[{"$f":"F8","v":"Название организации, должность, Фамилия И.О."},null,null,null,null,null,null,null,null,null,"(подпись, расшифровка)"]
[{"$f":"A10","v":"Генерального подрядчика"}]
[{"$f":"F10","v":"Название организации, должность, Фамилия И.О."},null,null,null,null,null,null,null,null,null,{"$f":"K41","v":"(подпись, расшифровка)"}]
[{"$f":"A12","v":"Заказчика"}]
[{"$f":"F12","v":"Название организации, должность, Фамилия И.О."},null,null,null,null,null,null,null,null,null,{"$f":"K43","v":"(подпись, расшифровка)"}]
[{"$f":"A14","v":"Монтажной организации"}]
[{"$f":"F14","v":"Название организации, должность, Фамилия И.О."},null,null,null,null,null,null,null,null,null,{"$f":"K45","v":"(подпись, расшифровка)"}]
[{"$f":"A16","v":"Эксплуатирующей организации"}]
[{"$f":"F16","v":"Название организации, должность, Фамилия И.О."},null,null,null,null,null,null,null,null,null,{"$f":"K47","v":"(подпись, расшифровка)"}]

{"sheet":"4","index":4,"n_rows":50,"n_cols":19,"rows_kept":50,"cut":false,"hidden":false,"merged":[[7,0,8,4],[7,5,7,24],[8,5,8,24],[0,0,0,23],[1,0,1,23],[3,0,3,9],[3,11,3,24],[5,0,5,22],[2,18,2,24],[9,0,10,4],[9,5,9,24],[10,5,10,24],[11,0,12,4],[11,5,11,24],[12,5,12,24],[13,0,14,4],[13,5,13,24],[14,5,14,24],[15,0,16,4],[15,5,15,24],[16,5,16,24],[24,0,24,24],[25,1,25,23],[26,1,26,23],[29,14,29,23],[18,0,18,23],[19,0,19,24],[20,0,20,24],[21,0,21,2],[21,3,21,24],[22,3,22,24],[29,1,29,13],[48,0,48,9],[49,0,49,9],[49,10,49,24],[42,0,42,9],[43,0,43,9],[43,10,43,24],[44,0,44,9],[45,0,45,9],[45,10,45,24],[30,1,30,23],[46,0,46,9],[47,0,47,9],[47,10,47,24],[31,1,31,20],[34,0,36,0],[34,1,36,24],[40,0,40,9],[41,0,41,9],[41,10,41,24]]}
["Акт №______"]
[{"$f":"'00'!C21","v":"Акт приемки систем естественной вентиляции."}]
[null,null,null,null,null,null,null,null,null,null,null,null,null,null,null,null,null,null,"Форма ИГАСН №30а/99"]
[{"$f":"'00'!C3","v":"г. Москва"},null,null,null,null,null,null,null,null,null,null,{"$f":"'00'!C4","v":"\"____\"________________ 200__г."}]
[]
["Комиссия в составе представителей:"]
[]
["Авторского надзора",null,null,null,null,{"$f":"'00'!C6","v":"Название организации, должность, Фамилия И.О."}]
[null,null,null,null,null,"(название организации, должность, ФИО)"]
["Генерального подрядчика",null,null,null,null,{"$f":"'00'!C7","v":"Название организации, должность, Фамилия И.О."}]
[null,null,null,null,null,{"$f":"F9","v":"(название организации, должность, ФИО)"}]
["Заказчика",null,null,null,null,{"$f":"'00'!C8","v":"Название организации, должность, Фамилия И.О."}]
[null,null,null,null,null,{"$f":"F11","v":"(название организации, должность, ФИО)"}]
["Монтажной организации",null,null,null,null,{"$f":"'00'!C9","v":"Название организации, должность, Фамилия И.О."}]
[null,null,null,null,null,{"$f":"F9","v":"(название организации, должность, ФИО)"}]
["Эксплуатирующей организации",null,null,null,null,{"$f":"'00'!C10","v":"Название организации, должность, Фамилия И.О."}]
[null,null,null,null,null,{"$f":"F9","v":"(название организации, должность, ФИО)"}]
[]
["На объекте:"]
[{"$f":"'00'!C1","v":"название объекта"}]
["(указать название объекта)"]
["по адресу:",null,null,{"$f":"'00'!C2","v":"полный адрес объекта"}]
[null,null,null,"(указать адрес объекта)"]
[]
["Произвели осмотр и приемку в эксплуатацию систем естественной вентиляции:"]
[null,{"$f":"'00'!C14","v":"номера систем ВЕ1 и т.д."}]
[null,"(указать номера систем)"]
[]
["В процессе приемки проверено:"]
["1.","Работы выполнены согласно СНиП и проекта",null,null,null,null,null,null,null,null,null,null,null,null,{"$f":"'00'!C12","v":"полный номер объекта"}]
["2.","Наличие тяги в решетках у вентиляционных отверстий."]
[]
[]
[null,"Решение комиссии:"]
["1.","В результате осмотра, проверки в действии  системы естественной вентиляции считать принятыми к эксплуатации."]
[]
[]
[]
[]
[]
[{"$f":"A8","v":"Авторского надзора"}]
[{"$f":"F8","v":"Название организации, должность, Фамилия И.О."},null,null,null,null,null,null,null,null,null,"(подпись, расшифровка)"]
[{"$f":"A10","v":"Генерального подрядчика"}]
[{"$f":"F10","v":"Название организации, должность, Фамилия И.О."},null,null,null,null,null,null,null,null,null,{"$f":"K42","v":"(подпись, расшифровка)"}]
[{"$f":"A12","v":"Заказчика"}]
[{"$f":"F12","v":"Название организации, должность, Фамилия И.О."},null,null,null,null,null,null,null,null,null,{"$f":"K44","v":"(подпись, расшифровка)"}]
[{"$f":"A14","v":"Монтажной организации"}]
[{"$f":"F14","v":"Название организации, должность, Фамилия И.О."},null,null,null,null,null,null,null,null,null,{"$f":"K46","v":"(подпись, расшифровка)"}]
[{"$f":"A16","v":"Эксплуатирующей организации"}]
[{"$f":"F16","v":"Название организации, должность, Фамилия И.О."},null,null,null,null,null,null,null,null,null,{"$f":"K48","v":"(подпись, расшифровка)"}]

{"sheet":"5","index":5,"n_rows":49,"n_cols":19,"rows_kept":49,"cut":false,"hidden":false,"merged":[[7,0,8,4],[7,5,7,24],[8,5,8,24],[0,0,0,23],[1,0,1,23],[3,0,3,9],[3,11,3,24],[5,0,5,22],[9,0,10,4],[9,5,9,24],[10,5,10,24],[11,0,12,4],[11,5,11,24],[12,5,12,24],[13,0,14,4],[13,5,13,24],[14,5,14,24],[15,0,16,4],[15,5,15,24],[16,5,16,24],[24,0,24,12],[25,1,25,17],[25,18,25,24],[26,1,26,24],[18,0,18,23],[19,0,19,24],[20,0,20,24],[21,0,21,2],[21,3,21,24],[22,3,22,24],[47,0,47,9],[48,0,48,9],[48,10,48,24],[41,0,41,9],[42,0,42,9],[42,10,42,24],[43,0,43,9],[44,0,44,9],[44,10,44,24],[27,1,28,24],[27,0,28,0],[36,1,36,24],[45,0,45,9],[46,0,46,9],[46,10,46,24],[31,1,31,20],[33,0,35,0],[33,1,35,24],[39,0,39,9],[40,0,40,9],[40,10,40,24]]}
["Акт №______"]
[{"$f":"'00'!C25","v":"Акт гидравлического испытания системы отопления."}]
[]
[{"$f":"'00'!C3","v":"г. Москва"},null,null,null,null,null,null,null,null,null,null,{"$f":"'00'!C4","v":"\"____\"________________ 200__г."}]
[]
["Комиссия в составе представителей:"]
[]
["Авторского надзора",null,null,null,null,{"$f":"'00'!C6","v":"Название организации, должность, Фамилия И.О."}]
[null,null,null,null,null,"(название организации, должность, ФИО)"]
["Генерального подрядчика",null,null,null,null,{"$f":"'00'!C7","v":"Название организации, должность, Фамилия И.О."}]
[null,null,null,null,null,{"$f":"F9","v":"(название организации, должность, ФИО)"}]
["Заказчика",null,null,null,null,{"$f":"'00'!C8","v":"Название организации, должность, Фамилия И.О."}]
[null,null,null,null,null,{"$f":"F11","v":"(название организации, должность, ФИО)"}]
["Монтажной организации",null,null,null,null,{"$f":"'00'!C9","v":"Название организации, должность, Фамилия И.О."}]
[null,null,null,null,null,{"$f":"F9","v":"(название организации, должность, ФИО)"}]
["Эксплуатирующей организации",null,null,null,null,{"$f":"'00'!C10","v":"Название организации, должность, Фамилия И.О."}]
[null,null,null,null,null,{"$f":"F9","v":"(название организации, должность, ФИО)"}]
[]
["На объекте:"]
[{"$f":"'00'!C1","v":"название объекта"}]
["(указать название объекта)"]
["по адресу:",null,null,{"$f":"'00'!C2","v":"полный адрес объекта"}]
[null,null,null,"(указать адрес объекта)"]
[]
["Составили настоящий акт о нижеследующем:"]
["1.","Работы выполнены согласно требованиям СНиП и проекта",null,null,null,null,null,null,null,null,null,null,null,null,null,null,null,null,{"$f":"'00'!C12","v":"полный номер объекта"}]
["2.","Испытание проведено манометрическим/гидравлическим методом (ненужное зачеркнуть). давлением   __ атм, в течении ____мин падение давления составило _____атм."]
["3.","Признаков разрыва или нарушения прочности соединения котлов и водонагревателей, капель в сварных швах, резьбовых соединениях, отопительных приборах, на поверхности труб, арматуры и утечки воды через водоразборную арматуру, сливные устройства и т.п. не обнаружено.(ненужное зачеркнуть)."]
[]
[]
[]
[]
[null,"Решение комиссии:"]
["1.","Монтаж выполнен в соответствии с проектной документацией, действующими техническими условиями, стандартами, строительными нормами и правилами производства и приемки работ."]
[]
[]
["2.","Система признается выдержавшей испытание на герметичность."]
[]
[]
[{"$f":"A8","v":"Авторского надзора"}]
[{"$f":"F8","v":"Название организации, должность, Фамилия И.О."},null,null,null,null,null,null,null,null,null,"(подпись, расшифровка)"]
[{"$f":"A10","v":"Генерального подрядчика"}]
[{"$f":"F10","v":"Название организации, должность, Фамилия И.О."},null,null,null,null,null,null,null,null,null,{"$f":"K41","v":"(подпись, расшифровка)"}]
[{"$f":"A12","v":"Заказчика"}]
[{"$f":"F12","v":"Название организации, должность, Фамилия И.О."},null,null,null,null,null,null,null,null,null,{"$f":"K43","v":"(подпись, расшифровка)"}]
[{"$f":"A14","v":"Монтажной организации"}]
[{"$f":"F14","v":"Название организации, должность, Фамилия И.О."},null,null,null,null,null,null,null,null,null,{"$f":"K45","v":"(подпись, расшифровка)"}]
[{"$f":"A16","v":"Эксплуатирующей организации"}]
[{"$f":"F16","v":"Название организации, должность, Фамилия И.О."},null,null,null,null,null,null,null,null,null,{"$f":"K47","v":"(подпись, расшифровка)"}]

{"sheet":"6","index":6,"n_rows":49,"n_cols":19,"rows_kept":49,"cut":false,"hidden":false,"merged":[[7,0,8,4],[7,5,7,24],[8,5,8,24],[0,0,0,23],[1,0,1,23],[3,0,3,9],[3,11,3,24],[5,0,5,22],[9,0,10,4],[9,5,9,24],[10,5,10,24],[11,0,12,4],[11,5,11,24],[12,5,12,24],[22,3,22,24],[13,0,14,4],[13,5,13,24],[14,5,14,24],[15,0,16,4],[15,5,15,24],[16,5,16,24],[18,0,18,23],[19,0,19,24],[20,0,20,24],[21,0,21,2],[21,3,21,24],[40,0,40,9],[40,10,40,24],[24,0,24,12],[25,1,25,17],[25,18,25,24],[26,1,26,24],[27,0,28,0],[27,1,28,24],[31,1,31,20],[33,0,35,0],[33,1,35,24],[36,1,36,24],[39,0,39,9],[41,0,41,9],[42,0,42,9],[42,10,42,24],[43,0,43,9],[44,0,44,9],[44,10,44,24],[45,0,45,9],[46,0,46,9],[46,10,46,24],[47,0,47,9],[48,0,48,9],[48,10,48,24]]}
["Акт №______"]
[{"$f":"'00'!C26","v":"Акт гидравлического испытания системы теплоснабжения."}]
[]
[{"$f":"'00'!C3","v":"г. Москва"},null,null,null,null,null,null,null,null,null,null,{"$f":"'00'!C4","v":"\"____\"________________ 200__г."}]
[]
["Комиссия в составе представителей:"]
[]
["Авторского надзора",null,null,null,null,{"$f":"'00'!C6","v":"Название организации, должность, Фамилия И.О."}]
[null,null,null,null,null,"(название организации, должность, ФИО)"]
["Генерального подрядчика",null,null,null,null,{"$f":"'00'!C7","v":"Название организации, должность, Фамилия И.О."}]
[null,null,null,null,null,{"$f":"F9","v":"(название организации, должность, ФИО)"}]
["Заказчика",null,null,null,null,{"$f":"'00'!C8","v":"Название организации, должность, Фамилия И.О."}]
[null,null,null,null,null,{"$f":"F11","v":"(название организации, должность, ФИО)"}]
["Монтажной организации",null,null,null,null,{"$f":"'00'!C9","v":"Название организации, должность, Фамилия И.О."}]
[null,null,null,null,null,{"$f":"F9","v":"(название организации, должность, ФИО)"}]
["Эксплуатирующей организации",null,null,null,null,{"$f":"'00'!C10","v":"Название организации, должность, Фамилия И.О."}]
[null,null,null,null,null,{"$f":"F9","v":"(название организации, должность, ФИО)"}]
[]
["На объекте:"]
[{"$f":"'00'!C1","v":"название объекта"}]
["(указать название объекта)"]
["по адресу:",null,null,{"$f":"'00'!C2","v":"полный адрес объекта"}]
[null,null,null,"(указать адрес объекта)"]
[]
["Составили настоящий акт о нижеследующем:"]
["1.","Работы выполнены согласно требованиям СНиП и проекта",null,null,null,null,null,null,null,null,null,null,null,null,null,null,null,null,{"$f":"'00'!C12","v":"полный номер объекта"}]
["2.","Испытание проведено манометрическим/гидравлическим методом (ненужное зачеркнуть). давлением   __ атм, в течении ____мин падение давления составило _____атм."]
["3.","Признаков разрыва или нарушения прочности соединения котлов и водонагревателей, капель в сварных швах, резьбовых соединениях, отопительных приборах, на поверхности труб, арматуры и утечки воды через водоразборную арматуру, сливные устройства и т.п. не обнаружено.(ненужное зачеркнуть)."]
[]
[]
[]
[]
[null,"Решение комиссии:"]
["1.","Монтаж выполнен в соответствии с проектной документацией, действующими техническими условиями, стандартами, строительными нормами и правилами производства и приемки работ."]
[]
[]
["2.","Система признается выдержавшей испытание на герметичность."]
[]
[]
[{"$f":"A8","v":"Авторского надзора"}]
[{"$f":"F8","v":"Название организации, должность, Фамилия И.О."},null,null,null,null,null,null,null,null,null,"(подпись, расшифровка)"]
[{"$f":"A10","v":"Генерального подрядчика"}]
[{"$f":"F10","v":"Название организации, должность, Фамилия И.О."},null,null,null,null,null,null,null,null,null,{"$f":"K41","v":"(подпись, расшифровка)"}]
[{"$f":"A12","v":"Заказчика"}]
[{"$f":"F12","v":"Название организации, должность, Фамилия И.О."},null,null,null,null,null,null,null,null,null,{"$f":"K43","v":"(подпись, расшифровка)"}]
[{"$f":"A14","v":"Монтажной организации"}]
[{"$f":"F14","v":"Название организации, должность, Фамилия И.О."},null,null,null,null,null,null,null,null,null,{"$f":"K45","v":"(подпись, расшифровка)"}]
[{"$f":"A16","v":"Эксплуатирующей организации"}]
[{"$f":"F16","v":"Название организации, должность, Фамилия И.О."},null,null,null,null,null,null,null,null,null,{"$f":"K47","v":"(подпись, расшифровка)"}]

{"sheet":"7","index":7,"n_rows":47,"n_cols":19,"rows_kept":47,"cut":false,"hidden":false,"merged":[[7,0,8,4],[7,5,7,24],[8,5,8,24],[0,0,0,23],[1,0,1,23],[3,0,3,9],[3,11,3,24],[5,0,5,22],[9,0,10,4],[9,5,9,24],[10,5,10,24],[11,0,12,4],[11,5,11,24],[12,5,12,24],[13,0,14,4],[13,5,13,24],[14,5,14,24],[15,0,16,4],[15,5,15,24],[16,5,16,24],[28,1,28,24],[18,0,18,23],[19,0,19,24],[20,0,20,24],[21,0,21,2],[21,3,21,24],[22,3,22,24],[24,0,24,12],[25,1,25,17],[25,18,25,24],[26,1,26,24],[27,1,27,24],[31,1,31,20],[33,1,33,24],[34,1,34,24],[37,0,37,9],[38,0,38,9],[38,10,38,24],[39,0,39,9],[40,0,40,9],[40,10,40,24],[41,0,41,9],[42,0,42,9],[42,10,42,24],[43,0,43,9],[44,0,44,9],[44,10,44,24],[45,0,45,9],[46,0,46,9],[46,10,46,24]]}
["Акт №______"]
[{"$f":"'00'!C27","v":"Акт приемки системы отопления к наладке."}]
[]
[{"$f":"'00'!C3","v":"г. Москва"},null,null,null,null,null,null,null,null,null,null,{"$f":"'00'!C4","v":"\"____\"________________ 200__г."}]
[]
["Комиссия в составе представителей:"]
[]
["Авторского надзора",null,null,null,null,{"$f":"'00'!C6","v":"Название организации, должность, Фамилия И.О."}]
[null,null,null,null,null,"(название организации, должность, ФИО)"]
["Генерального подрядчика",null,null,null,null,{"$f":"'00'!C7","v":"Название организации, должность, Фамилия И.О."}]
[null,null,null,null,null,{"$f":"F9","v":"(название организации, должность, ФИО)"}]
["Заказчика",null,null,null,null,{"$f":"'00'!C8","v":"Название организации, должность, Фамилия И.О."}]
[null,null,null,null,null,{"$f":"F11","v":"(название организации, должность, ФИО)"}]
["Монтажной организации",null,null,null,null,{"$f":"'00'!C9","v":"Название организации, должность, Фамилия И.О."}]
[null,null,null,null,null,{"$f":"F9","v":"(название организации, должность, ФИО)"}]
["Эксплуатирующей организации",null,null,null,null,{"$f":"'00'!C10","v":"Название организации, должность, Фамилия И.О."}]
[null,null,null,null,null,{"$f":"F9","v":"(название организации, должность, ФИО)"}]
[]
["На объекте:"]
[{"$f":"'00'!C1","v":"название объекта"}]
["(указать название объекта)"]
["по адресу:",null,null,{"$f":"'00'!C2","v":"полный адрес объекта"}]
[null,null,null,"(указать адрес объекта)"]
[]
["Составили настоящий акт о нижеследующем:"]
["1.","Работы выполнены согласно требованиям СНиП и проекта",null,null,null,null,null,null,null,null,null,null,null,null,null,null,null,null,{"$f":"'00'!C12","v":"полный номер объекта"}]
["2.","Все противопожарные и санитарно-гигиенические требования выполнены."]
["3.","Мероприятия по звуко- и виброизоляции выполнены в соответствии с рабочими чертежами проекта."]
["4.","Отступлений от проекта и недоделок, препятствующих наладке, не обнаружено."]
[]
[]
[]
[null,"Решение комиссии:"]
["1.","Систему отопления считать принятой к наладке."]
[]
[]
[]
[{"$f":"A8","v":"Авторского надзора"}]
[{"$f":"F8","v":"Название организации, должность, Фамилия И.О."},null,null,null,null,null,null,null,null,null,"(подпись, расшифровка)"]
[{"$f":"A10","v":"Генерального подрядчика"}]
[{"$f":"F10","v":"Название организации, должность, Фамилия И.О."},null,null,null,null,null,null,null,null,null,{"$f":"K39","v":"(подпись, расшифровка)"}]
[{"$f":"A12","v":"Заказчика"}]
[{"$f":"F12","v":"Название организации, должность, Фамилия И.О."},null,null,null,null,null,null,null,null,null,{"$f":"K41","v":"(подпись, расшифровка)"}]
[{"$f":"A14","v":"Монтажной организации"}]
[{"$f":"F14","v":"Название организации, должность, Фамилия И.О."},null,null,null,null,null,null,null,null,null,{"$f":"K43","v":"(подпись, расшифровка)"}]
[{"$f":"A16","v":"Эксплуатирующей организации"}]
[{"$f":"F16","v":"Название организации, должность, Фамилия И.О."},null,null,null,null,null,null,null,null,null,{"$f":"K45","v":"(подпись, расшифровка)"}]

{"sheet":"8","index":8,"n_rows":56,"n_cols":21,"rows_kept":56,"cut":false,"hidden":false,"merged":[[55,10,55,24],[47,0,47,9],[49,0,49,9],[51,0,51,9],[53,0,53,9],[55,0,55,9],[47,10,47,24],[49,10,49,24],[51,10,51,24],[53,10,53,24],[46,0,46,9],[48,0,48,9],[50,0,50,9],[52,0,52,9],[54,0,54,9],[43,0,44,24],[35,1,36,24],[35,0,36,0],[37,1,38,24],[37,0,38,0],[39,1,41,24],[39,0,41,0],[16,5,16,24],[15,5,15,24],[19,0,19,24],[20,0,20,24],[21,3,21,24],[15,0,16,4],[32,0,34,0],[23,0,23,12],[25,0,26,0],[18,0,18,23],[21,0,21,2],[25,1,25,12],[25,13,25,19],[25,20,25,24],[26,1,26,24],[22,3,22,24],[27,1,28,24],[27,0,28,0],[29,1,31,24],[29,0,31,0],[32,1,34,24],[8,5,8,24],[9,5,9,24],[10,5,10,24],[13,0,14,4],[14,5,14,24],[9,0,10,4],[7,0,8,4],[11,0,12,4],[11,5,11,24],[12,5,12,24],[13,5,13,24],[7,5,7,24],[0,0,0,23],[1,0,1,23],[5,0,5,22],[3,11,3,24],[3,0,3,9]]}
[{"$f":"'1'!A1:X1","v":"Акт №______"}]
[{"$f":"'00'!C28","v":"Акт приемки системы отопления к эксплуатации."}]
[]
[{"$f":"'00'!C3","v":"г. Москва"},null,null,null,null,null,null,null,null,null,null,{"$f":"'00'!C4","v":"\"____\"________________ 200__г."}]
[]
["Комиссия в составе представителей:"]
[]
["Авторского надзора",null,null,null,null,{"$f":"'00'!C6","v":"Название организации, должность, Фамилия И.О."}]
[null,null,null,null,null,"(название организации, должность, ФИО)"]
["Генерального подрядчика",null,null,null,null,{"$f":"'00'!C7","v":"Название организации, должность, Фамилия И.О."}]
[null,null,null,null,null,{"$f":"F9","v":"(название организации, должность, ФИО)"}]
["Заказчика",null,null,null,null,{"$f":"'00'!C8","v":"Название организации, должность, Фамилия И.О."}]
[null,null,null,null,null,{"$f":"F11","v":"(название организации, должность, ФИО)"}]
["Монтажной организации",null,null,null,null,{"$f":"'00'!C9","v":"Название организации, должность, Фамилия И.О."}]
[null,null,null,null,null,{"$f":"F9","v":"(название организации, должность, ФИО)"}]
["Эксплуатирующей организации",null,null,null,null,{"$f":"'00'!C10","v":"Название организации, должность, Фамилия И.О."}]
[null,null,null,null,null,{"$f":"F9","v":"(название организации, должность, ФИО)"}]
[]
["Произвели проверку системы отопления на эффективность действия на объекте:"]
[{"$f":"'00'!C1","v":"название объекта"}]
["(указать название объекта)"]
["по адресу:",null,null,{"$f":"'00'!C2","v":"полный адрес объекта"}]
[null,null,null,"(указать адрес объекта)"]
["и установили:"]
[]
[1,"Работы выполнены согласно требованиям СНиП и проекта",null,null,null,null,null,null,null,null,null,null,null,{"$f":"'00'!C12","v":"полный номер объекта"},null,null,null,null,null,null,"и испытана согласно"]
[null,"СНиП и проекта давлением ____атм (см акт №____ от «___»__________ 200__г)."]
[2,"Расширительный сосуд установлен в ИТП (ЦТП) в корпусе №___ в соответствии с проектом, изолирован и обеспечен автоматикой подпитки. "]
[]
[3,"Автоматизированный узел управления (АУУ при подключении здания через ЦТП) смонтирован и функционирует в соответствии с проектом инормативно-технической документацией, обеспечивает параметры теплоносителя соответствующие графику температур и расчетным давлениям."]
[]
[]
[4,"Термостатические автоматические клапана на отопительных приборах установлены в соответствии с проектом и имеют временные защитные колпачки или термоэлементы. В случае на установки термостатических элементов на время приемки системы отопления предъявлен договор №_____ от «_____» _____________ 2000___г со специализированной организацией о принятии на хранение и последующую установку термоэлементов."]
[]
[]
[5," В двухтрубной системе отопления на термостатических элементах проведена монтажная настройка клапанов на позиции, соответствующие проектным решениям для каждого помещения."]
[]
[6,"При наличии балансировочных клапанов на секционных узлах и стояках системы отопления проведена монтажная настройка клапанов на позиции, соответствующие проектным решениям для каждого стояка (лежака)."]
[]
[7,"Проверка на эффективность действия системы отопления в целом (с установленными термостатическими элементами) показала, что при наружной температуре Тн=_____°С, циркуляционный напор ______м, при этом все приборы системы отопления имеют равномерный прогрев. Температура внутри помещения составила Твн=_____°С."]
[]
[]
[]
["На основании проведенных испытаний и осмотра предъявленная система отопления считается принятой к эксплуатации."]
[]
[]
[{"$f":"A8","v":"Авторского надзора"}]
[{"$f":"F8","v":"Название организации, должность, Фамилия И.О."},null,null,null,null,null,null,null,null,null,"(подпись, расшифровка)"]
[{"$f":"A10","v":"Генерального подрядчика"}]
[{"$f":"F10","v":"Название организации, должность, Фамилия И.О."},null,null,null,null,null,null,null,null,null,{"$f":"K48","v":"(подпись, расшифровка)"}]
[{"$f":"A12","v":"Заказчика"}]
[{"$f":"F12","v":"Название организации, должность, Фамилия И.О."},null,null,null,null,null,null,null,null,null,{"$f":"K50","v":"(подпись, расшифровка)"}]
[{"$f":"A14","v":"Монтажной организации"}]
[{"$f":"F14","v":"Название организации, должность, Фамилия И.О."},null,null,null,null,null,null,null,null,null,{"$f":"K52","v":"(подпись, расшифровка)"}]
[{"$f":"A16","v":"Эксплуатирующей организации"}]
[{"$f":"F16","v":"Название организации, должность, Фамилия И.О."},null,null,null,null,null,null,null,null,null,{"$f":"K54","v":"(подпись, расшифровка)"}]

{"sheet":"9","index":9,"n_rows":47,"n_cols":19,"rows_kept":47,"cut":false,"hidden":false,"merged":[[7,0,8,4],[7,5,7,24],[8,5,8,24],[0,0,0,23],[1,0,1,23],[3,0,3,9],[3,11,3,24],[5,0,5,22],[9,0,10,4],[9,5,9,24],[10,5,10,24],[11,0,12,4],[11,5,11,24],[12,5,12,24],[13,0,14,4],[13,5,13,24],[14,5,14,24],[15,0,16,4],[15,5,15,24],[16,5,16,24],[28,1,28,24],[18,0,18,23],[19,0,19,24],[20,0,20,24],[21,0,21,2],[21,3,21,24],[22,3,22,24],[24,0,24,12],[25,1,25,17],[25,18,25,24],[26,1,26,24],[27,1,27,24],[31,1,31,20],[33,1,33,24],[34,1,34,24],[37,0,37,9],[38,0,38,9],[38,10,38,24],[39,0,39,9],[40,0,40,9],[40,10,40,24],[41,0,41,9],[42,0,42,9],[42,10,42,24],[43,0,43,9],[44,0,44,9],[44,10,44,24],[45,0,45,9],[46,0,46,9],[46,10,46,24]]}
["Акт №______"]
[{"$f":"'00'!C29","v":"Акт приемки системы теплоснабжения к наладке."}]
[]
[{"$f":"'00'!C3","v":"г. Москва"},null,null,null,null,null,null,null,null,null,null,{"$f":"'00'!C4","v":"\"____\"________________ 200__г."}]
[]
["Комиссия в составе представителей:"]
[]
["Авторского надзора",null,null,null,null,{"$f":"'00'!C6","v":"Название организации, должность, Фамилия И.О."}]
[null,null,null,null,null,"(название организации, должность, ФИО)"]
["Генерального подрядчика",null,null,null,null,{"$f":"'00'!C7","v":"Название организации, должность, Фамилия И.О."}]
[null,null,null,null,null,{"$f":"F9","v":"(название организации, должность, ФИО)"}]
["Заказчика",null,null,null,null,{"$f":"'00'!C8","v":"Название организации, должность, Фамилия И.О."}]
[null,null,null,null,null,{"$f":"F11","v":"(название организации, должность, ФИО)"}]
["Монтажной организации",null,null,null,null,{"$f":"'00'!C9","v":"Название организации, должность, Фамилия И.О."}]
[null,null,null,null,null,{"$f":"F9","v":"(название организации, должность, ФИО)"}]
["Эксплуатирующей организации",null,null,null,null,{"$f":"'00'!C10","v":"Название организации, должность, Фамилия И.О."}]
[null,null,null,null,null,{"$f":"F9","v":"(название организации, должность, ФИО)"}]
[]
["На объекте:"]
[{"$f":"'00'!C1","v":"название объекта"}]
["(указать название объекта)"]
["по адресу:",null,null,{"$f":"'00'!C2","v":"полный адрес объекта"}]
[null,null,null,"(указать адрес объекта)"]
[]
["Составили настоящий акт о нижеследующем:"]
["1.","Работы выполнены согласно требованиям СНиП и проекта",null,null,null,null,null,null,null,null,null,null,null,null,null,null,null,null,{"$f":"'00'!C12","v":"полный номер объекта"}]
["2.","Все противопожарные и санитарно-гигиенические требования выполнены."]
["3.","Мероприятия по звуко- и виброизоляции выполнены в соответствии с рабочими чертежами проекта."]
["4.","Отступлений от проекта и недоделок, препятствующих наладке, не обнаружено."]
[]
[]
[]
[null,"Решение комиссии:"]
["1.","Систему теплоснабжения считать принятой к наладке."]
[]
[]
[]
[{"$f":"A8","v":"Авторского надзора"}]
[{"$f":"F8","v":"Название организации, должность, Фамилия И.О."},null,null,null,null,null,null,null,null,null,"(подпись, расшифровка)"]
[{"$f":"A10","v":"Генерального подрядчика"}]
[{"$f":"F10","v":"Название организации, должность, Фамилия И.О."},null,null,null,null,null,null,null,null,null,{"$f":"K39","v":"(подпись, расшифровка)"}]
[{"$f":"A12","v":"Заказчика"}]
[{"$f":"F12","v":"Название организации, должность, Фамилия И.О."},null,null,null,null,null,null,null,null,null,{"$f":"K41","v":"(подпись, расшифровка)"}]
[{"$f":"A14","v":"Монтажной организации"}]
[{"$f":"F14","v":"Название организации, должность, Фамилия И.О."},null,null,null,null,null,null,null,null,null,{"$f":"K43","v":"(подпись, расшифровка)"}]
[{"$f":"A16","v":"Эксплуатирующей организации"}]
[{"$f":"F16","v":"Название организации, должность, Фамилия И.О."},null,null,null,null,null,null,null,null,null,{"$f":"K45","v":"(подпись, расшифровка)"}]

{"sheet":"10","index":10,"n_rows":47,"n_cols":19,"rows_kept":47,"cut":false,"hidden":false,"merged":[[7,0,8,4],[7,5,7,24],[8,5,8,24],[0,0,0,23],[1,0,1,23],[3,0,3,9],[3,11,3,24],[5,0,5,22],[9,0,10,4],[9,5,9,24],[10,5,10,24],[11,0,12,4],[11,5,11,24],[12,5,12,24],[13,0,14,4],[13,5,13,24],[14,5,14,24],[15,0,16,4],[15,5,15,24],[16,5,16,24],[28,1,28,24],[18,0,18,23],[19,0,19,24],[20,0,20,24],[21,0,21,2],[21,3,21,24],[22,3,22,24],[24,0,24,12],[25,1,25,17],[25,18,25,24],[26,1,26,24],[27,1,27,24],[31,1,31,20],[33,1,33,24],[34,1,34,24],[37,0,37,9],[38,0,38,9],[38,10,38,24],[39,0,39,9],[40,0,40,9],[40,10,40,24],[41,0,41,9],[42,0,42,9],[42,10,42,24],[43,0,43,9],[44,0,44,9],[44,10,44,24],[45,0,45,9],[46,0,46,9],[46,10,46,24]]}
["Акт №______"]
[{"$f":"'00'!C30","v":"Акт приемки системы теплоснабжения к эксплуатации."}]
[]
[{"$f":"'00'!C3","v":"г. Москва"},null,null,null,null,null,null,null,null,null,null,{"$f":"'00'!C4","v":"\"____\"________________ 200__г."}]
[]
["Комиссия в составе представителей:"]
[]
["Авторского надзора",null,null,null,null,{"$f":"'00'!C6","v":"Название организации, должность, Фамилия И.О."}]
[null,null,null,null,null,"(название организации, должность, ФИО)"]
["Генерального подрядчика",null,null,null,null,{"$f":"'00'!C7","v":"Название организации, должность, Фамилия И.О."}]
[null,null,null,null,null,{"$f":"F9","v":"(название организации, должность, ФИО)"}]
["Заказчика",null,null,null,null,{"$f":"'00'!C8","v":"Название организации, должность, Фамилия И.О."}]
[null,null,null,null,null,{"$f":"F11","v":"(название организации, должность, ФИО)"}]
["Монтажной организации",null,null,null,null,{"$f":"'00'!C9","v":"Название организации, должность, Фамилия И.О."}]
[null,null,null,null,null,{"$f":"F9","v":"(название организации, должность, ФИО)"}]
["Эксплуатирующей организации",null,null,null,null,{"$f":"'00'!C10","v":"Название организации, должность, Фамилия И.О."}]
[null,null,null,null,null,{"$f":"F9","v":"(название организации, должность, ФИО)"}]
[]
["На объекте:"]
[{"$f":"'00'!C1","v":"название объекта"}]
["(указать название объекта)"]
["по адресу:",null,null,{"$f":"'00'!C2","v":"полный адрес объекта"}]
[null,null,null,"(указать адрес объекта)"]
[]
["Составили настоящий акт о нижеследующем:"]
["1.","Работы выполнены согласно требованиям СНиП и проекта",null,null,null,null,null,null,null,null,null,null,null,null,null,null,null,null,{"$f":"'00'!C12","v":"полный номер объекта"}]
["2.","Все противопожарные и санитарно-гигиенические требования выполнены."]
["3.","Мероприятия по звуко- и виброизоляции выполнены в соответствии с рабочими чертежами проекта."]
["4.","Отступлений от проекта и недоделок, препятствующих нормальной эксплуатации, не обнаружено."]
[]
[]
[]
[null,"Решение комиссии:"]
["1.","Систему теплоснабжения считать принятой к эксплуатации."]
[]
[]
[]
[{"$f":"A8","v":"Авторского надзора"}]
[{"$f":"F8","v":"Название организации, должность, Фамилия И.О."},null,null,null,null,null,null,null,null,null,"(подпись, расшифровка)"]
[{"$f":"A10","v":"Генерального подрядчика"}]
[{"$f":"F10","v":"Название организации, должность, Фамилия И.О."},null,null,null,null,null,null,null,null,null,{"$f":"K39","v":"(подпись, расшифровка)"}]
[{"$f":"A12","v":"Заказчика"}]
[{"$f":"F12","v":"Название организации, должность, Фамилия И.О."},null,null,null,null,null,null,null,null,null,{"$f":"K41","v":"(подпись, расшифровка)"}]
[{"$f":"A14","v":"Монтажной организации"}]
[{"$f":"F14","v":"Название организации, должность, Фамилия И.О."},null,null,null,null,null,null,null,null,null,{"$f":"K43","v":"(подпись, расшифровка)"}]
[{"$f":"A16","v":"Эксплуатирующей организации"}]
[{"$f":"F16","v":"Название организации, должность, Фамилия И.О."},null,null,null,null,null,null,null,null,null,{"$f":"K45","v":"(подпись, расшифровка)"}]

{"sheet":"11","index":11,"n_rows":47,"n_cols":19,"rows_kept":47,"cut":false,"hidden":false,"merged":[[7,0,8,4],[7,5,7,24],[8,5,8,24],[0,0,0,23],[1,0,1,23],[3,0,3,9],[3,11,3,24],[5,0,5,22],[9,0,10,4],[9,5,9,24],[10,5,10,24],[11,0,12,4],[11,5,11,24],[12,5,12,24],[13,0,14,4],[13,5,13,24],[14,5,14,24],[15,0,16,4],[15,5,15,24],[16,5,16,24],[28,1,28,24],[18,0,18,23],[19,0,19,24],[20,0,20,24],[21,0,21,2],[21,3,21,24],[22,3,22,24],[24,0,24,12],[25,1,25,17],[25,18,25,24],[26,1,26,24],[27,1,27,24],[31,1,31,20],[33,1,33,24],[34,1,34,24],[37,0,37,9],[38,0,38,9],[38,10,38,24],[39,0,39,9],[40,0,40,9],[40,10,40,24],[41,0,41,9],[42,0,42,9],[42,10,42,24],[43,0,43,9],[44,0,44,9],[44,10,44,24],[45,0,45,9],[46,0,46,9],[46,10,46,24]]}
["Акт №______"]
[{"$f":"'00'!C31","v":"Акт промывки системы отопления."}]
[]
[{"$f":"'00'!C3","v":"г. Москва"},null,null,null,null,null,null,null,null,null,null,{"$f":"'00'!C4","v":"\"____\"________________ 200__г."}]
[]
["Комиссия в составе представителей:"]
[]
["Авторского надзора",null,null,null,null,{"$f":"'00'!C6","v":"Название организации, должность, Фамилия И.О."}]
[null,null,null,null,null,"(название организации, должность, ФИО)"]
["Генерального подрядчика",null,null,null,null,{"$f":"'00'!C7","v":"Название организации, должность, Фамилия И.О."}]
[null,null,null,null,null,{"$f":"F9","v":"(название организации, должность, ФИО)"}]
["Заказчика",null,null,null,null,{"$f":"'00'!C8","v":"Название организации, должность, Фамилия И.О."}]
[null,null,null,null,null,{"$f":"F11","v":"(название организации, должность, ФИО)"}]
["Монтажной организации",null,null,null,null,{"$f":"'00'!C9","v":"Название организации, должность, Фамилия И.О."}]
[null,null,null,null,null,{"$f":"F9","v":"(название организации, должность, ФИО)"}]
["Эксплуатирующей организации",null,null,null,null,{"$f":"'00'!C10","v":"Название организации, должность, Фамилия И.О."}]
[null,null,null,null,null,{"$f":"F9","v":"(название организации, должность, ФИО)"}]
[]
["На объекте:"]
[{"$f":"'00'!C1","v":"название объекта"}]
["(указать название объекта)"]
["по адресу:",null,null,{"$f":"'00'!C2","v":"полный адрес объекта"}]
[null,null,null,"(указать адрес объекта)"]
[]
["Составили настоящий акт о нижеследующем:"]
["1.","Работы выполнены согласно требованиям СНиП и проекта",null,null,null,null,null,null,null,null,null,null,null,null,null,null,null,null,{"$f":"'00'!C12","v":"полный номер объекта"}]
["2.","Была произведена промывка системы отопления диаметр ввода _____, давление ____, длина ввода ____, диаметр сливного отверстия _____, время промывки _____"]
[]
[]
[]
[]
[]
[null,"Решение комиссии:"]
["1.","Система отопления промыта в полном объеме."]
[]
[]
[]
[{"$f":"A8","v":"Авторского надзора"}]
[{"$f":"F8","v":"Название организации, должность, Фамилия И.О."},null,null,null,null,null,null,null,null,null,"(подпись, расшифровка)"]
[{"$f":"A10","v":"Генерального подрядчика"}]
[{"$f":"F10","v":"Название организации, должность, Фамилия И.О."},null,null,null,null,null,null,null,null,null,{"$f":"K39","v":"(подпись, расшифровка)"}]
[{"$f":"A12","v":"Заказчика"}]
[{"$f":"F12","v":"Название организации, должность, Фамилия И.О."},null,null,null,null,null,null,null,null,null,{"$f":"K41","v":"(подпись, расшифровка)"}]
[{"$f":"A14","v":"Монтажной организации"}]
[{"$f":"F14","v":"Название организации, должность, Фамилия И.О."},null,null,null,null,null,null,null,null,null,{"$f":"K43","v":"(подпись, расшифровка)"}]
[{"$f":"A16","v":"Эксплуатирующей организации"}]
[{"$f":"F16","v":"Название организации, должность, Фамилия И.О."},null,null,null,null,null,null,null,null,null,{"$f":"K45","v":"(подпись, расшифровка)"}]

{"sheet":"12","index":12,"n_rows":47,"n_cols":19,"rows_kept":47,"cut":false,"hidden":false,"merged":[[7,0,8,4],[7,5,7,24],[8,5,8,24],[0,0,0,23],[1,0,1,23],[3,0,3,9],[3,11,3,24],[5,0,5,22],[9,0,10,4],[9,5,9,24],[10,5,10,24],[11,0,12,4],[11,5,11,24],[12,5,12,24],[13,0,14,4],[13,5,13,24],[14,5,14,24],[15,0,16,4],[15,5,15,24],[16,5,16,24],[28,1,28,24],[18,0,18,23],[19,0,19,24],[20,0,20,24],[21,0,21,2],[21,3,21,24],[22,3,22,24],[24,0,24,12],[25,1,25,17],[25,18,25,24],[26,1,26,24],[27,1,27,24],[31,1,31,20],[33,1,33,24],[34,1,34,24],[37,0,37,9],[38,0,38,9],[38,10,38,24],[39,0,39,9],[40,0,40,9],[40,10,40,24],[41,0,41,9],[42,0,42,9],[42,10,42,24],[43,0,43,9],[44,0,44,9],[44,10,44,24],[45,0,45,9],[46,0,46,9],[46,10,46,24]]}
["Акт №______"]
[{"$f":"'00'!C32","v":"Акт промывки системы теплоснабжения."}]
[]
[{"$f":"'00'!C3","v":"г. Москва"},null,null,null,null,null,null,null,null,null,null,{"$f":"'00'!C4","v":"\"____\"________________ 200__г."}]
[]
["Комиссия в составе представителей:"]
[]
["Авторского надзора",null,null,null,null,{"$f":"'00'!C6","v":"Название организации, должность, Фамилия И.О."}]
[null,null,null,null,null,"(название организации, должность, ФИО)"]
["Генерального подрядчика",null,null,null,null,{"$f":"'00'!C7","v":"Название организации, должность, Фамилия И.О."}]
[null,null,null,null,null,{"$f":"F9","v":"(название организации, должность, ФИО)"}]
["Заказчика",null,null,null,null,{"$f":"'00'!C8","v":"Название организации, должность, Фамилия И.О."}]
[null,null,null,null,null,{"$f":"F11","v":"(название организации, должность, ФИО)"}]
["Монтажной организации",null,null,null,null,{"$f":"'00'!C9","v":"Название организации, должность, Фамилия И.О."}]
[null,null,null,null,null,{"$f":"F9","v":"(название организации, должность, ФИО)"}]
["Эксплуатирующей организации",null,null,null,null,{"$f":"'00'!C10","v":"Название организации, должность, Фамилия И.О."}]
[null,null,null,null,null,{"$f":"F9","v":"(название организации, должность, ФИО)"}]
[]
["На объекте:"]
[{"$f":"'00'!C1","v":"название объекта"}]
["(указать название объекта)"]
["по адресу:",null,null,{"$f":"'00'!C2","v":"полный адрес объекта"}]
[null,null,null,"(указать адрес объекта)"]
[]
["Составили настоящий акт о нижеследующем:"]
["1.","Работы выполнены согласно требованиям СНиП и проекта",null,null,null,null,null,null,null,null,null,null,null,null,null,null,null,null,{"$f":"'00'!C12","v":"полный номер объекта"}]
["2.","Была произведена промывка системы отопления диаметр ввода _____, давление ____, длина ввода ____, диаметр сливного отверстия _____, время промывки _____"]
[]
[]
[]
[]
[]
[null,"Решение комиссии:"]
["1.","Система теплоснабжения промыта в полном объеме."]
[]
[]
[]
[{"$f":"A8","v":"Авторского надзора"}]
[{"$f":"F8","v":"Название организации, должность, Фамилия И.О."},null,null,null,null,null,null,null,null,null,"(подпись, расшифровка)"]
[{"$f":"A10","v":"Генерального подрядчика"}]
[{"$f":"F10","v":"Название организации, должность, Фамилия И.О."},null,null,null,null,null,null,null,null,null,{"$f":"K39","v":"(подпись, расшифровка)"}]
[{"$f":"A12","v":"Заказчика"}]
[{"$f":"F12","v":"Название организации, должность, Фамилия И.О."},null,null,null,null,null,null,null,null,null,{"$f":"K41","v":"(подпись, расшифровка)"}]
[{"$f":"A14","v":"Монтажной организации"}]
[{"$f":"F14","v":"Название организации, должность, Фамилия И.О."},null,null,null,null,null,null,null,null,null,{"$f":"K43","v":"(подпись, расшифровка)"}]
[{"$f":"A16","v":"Эксплуатирующей организации"}]
[{"$f":"F16","v":"Название организации, должность, Фамилия И.О."},null,null,null,null,null,null,null,null,null,{"$f":"K45","v":"(подпись, расшифровка)"}]

{"sheet":"13","index":13,"n_rows":47,"n_cols":19,"rows_kept":47,"cut":false,"hidden":false,"merged":[[7,0,8,4],[7,5,7,24],[8,5,8,24],[0,0,0,23],[1,0,1,23],[3,0,3,9],[3,11,3,24],[5,0,5,22],[9,0,10,4],[9,5,9,24],[10,5,10,24],[11,0,12,4],[11,5,11,24],[12,5,12,24],[13,0,14,4],[13,5,13,24],[14,5,14,24],[15,0,16,4],[15,5,15,24],[16,5,16,24],[28,1,28,24],[18,0,18,23],[19,0,19,24],[20,0,20,24],[21,0,21,2],[21,3,21,24],[22,3,22,24],[24,0,24,12],[25,1,25,17],[25,18,25,24],[26,1,26,24],[27,1,27,24],[31,1,31,20],[33,1,33,24],[34,1,34,24],[37,0,37,9],[38,0,38,9],[38,10,38,24],[39,0,39,9],[40,0,40,9],[40,10,40,24],[41,0,41,9],[42,0,42,9],[42,10,42,24],[43,0,43,9],[44,0,44,9],[44,10,44,24],[45,0,45,9],[46,0,46,9],[46,10,46,24]]}
["Акт №______"]
[{"$f":"'00'!C33","v":"Акт промывки узла ввода."}]
[]
[{"$f":"'00'!C3","v":"г. Москва"},null,null,null,null,null,null,null,null,null,null,{"$f":"'00'!C4","v":"\"____\"________________ 200__г."}]
[]
["Комиссия в составе представителей:"]
[]
["Авторского надзора",null,null,null,null,{"$f":"'00'!C6","v":"Название организации, должность, Фамилия И.О."}]
[null,null,null,null,null,"(название организации, должность, ФИО)"]
["Генерального подрядчика",null,null,null,null,{"$f":"'00'!C7","v":"Название организации, должность, Фамилия И.О."}]
[null,null,null,null,null,{"$f":"F9","v":"(название организации, должность, ФИО)"}]
["Заказчика",null,null,null,null,{"$f":"'00'!C8","v":"Название организации, должность, Фамилия И.О."}]
[null,null,null,null,null,{"$f":"F11","v":"(название организации, должность, ФИО)"}]
["Монтажной организации",null,null,null,null,{"$f":"'00'!C9","v":"Название организации, должность, Фамилия И.О."}]
[null,null,null,null,null,{"$f":"F9","v":"(название организации, должность, ФИО)"}]
["Эксплуатирующей организации",null,null,null,null,{"$f":"'00'!C10","v":"Название организации, должность, Фамилия И.О."}]
[null,null,null,null,null,{"$f":"F9","v":"(название организации, должность, ФИО)"}]
[]
["На объекте:"]
[{"$f":"'00'!C1","v":"название объекта"}]
["(указать название объекта)"]
["по адресу:",null,null,{"$f":"'00'!C2","v":"полный адрес объекта"}]
[null,null,null,"(указать адрес объекта)"]
[]
["Составили настоящий акт о нижеследующем:"]
["1.","Работы выполнены согласно требованиям СНиП и проекта",null,null,null,null,null,null,null,null,null,null,null,null,null,null,null,null,{"$f":"'00'!C12","v":"полный номер объекта"}]
["2.","Была произведена промывка системы отопления диаметр ввода _____, давление ____, длина ввода ____, диаметр сливного отверстия _____, время промывки _____"]
[]
[]
[]
[]
[]
[null,"Решение комиссии:"]
["1.","Система узла ввода промыта в полном объеме."]
[]
[]
[]
[{"$f":"A8","v":"Авторского надзора"}]
[{"$f":"F8","v":"Название организации, должность, Фамилия И.О."},null,null,null,null,null,null,null,null,null,"(подпись, расшифровка)"]
[{"$f":"A10","v":"Генерального подрядчика"}]
[{"$f":"F10","v":"Название организации, должность, Фамилия И.О."},null,null,null,null,null,null,null,null,null,{"$f":"K39","v":"(подпись, расшифровка)"}]
[{"$f":"A12","v":"Заказчика"}]
[{"$f":"F12","v":"Название организации, должность, Фамилия И.О."},null,null,null,null,null,null,null,null,null,{"$f":"K41","v":"(подпись, расшифровка)"}]
[{"$f":"A14","v":"Монтажной организации"}]
[{"$f":"F14","v":"Название организации, должность, Фамилия И.О."},null,null,null,null,null,null,null,null,null,{"$f":"K43","v":"(подпись, расшифровка)"}]
[{"$f":"A16","v":"Эксплуатирующей организации"}]
[{"$f":"F16","v":"Название организации, должность, Фамилия И.О."},null,null,null,null,null,null,null,null,null,{"$f":"K45","v":"(подпись, расшифровка)"}]

{"sheet":"14","index":14,"n_rows":45,"n_cols":19,"rows_kept":45,"cut":false,"hidden":false,"merged":[[7,0,8,4],[7,5,7,24],[8,5,8,24],[0,0,0,23],[1,0,1,23],[3,0,3,9],[3,11,3,24],[5,0,5,22],[9,0,10,4],[9,5,9,24],[10,5,10,24],[11,0,12,4],[11,5,11,24],[12,5,12,24],[13,0,14,4],[13,5,13,24],[14,5,14,24],[15,0,16,4],[15,5,15,24],[16,5,16,24],[24,0,24,24],[18,0,18,23],[19,0,19,24],[20,0,20,24],[21,0,21,2],[21,3,21,24],[22,3,22,24],[25,1,25,17],[25,18,25,24],[26,1,26,24],[27,1,27,24],[28,1,28,24],[29,1,29,20],[31,1,31,24],[32,1,32,24],[35,0,35,9],[36,0,36,9],[36,10,36,24],[37,0,37,9],[38,0,38,9],[38,10,38,24],[39,0,39,9],[40,0,40,9],[40,10,40,24],[41,0,41,9],[42,0,42,9],[42,10,42,24],[43,0,43,9],[44,0,44,9],[44,10,44,24]]}
["Акт №______"]
[{"$f":"'00'!C43","v":"Акт приемки системы выпусков внутреннего водостока из здания."}]
[]
[{"$f":"'00'!C3","v":"г. Москва"},null,null,null,null,null,null,null,null,null,null,{"$f":"'00'!C4","v":"\"____\"________________ 200__г."}]
[]
["Комиссия в составе представителей:"]
[]
["Авторского надзора",null,null,null,null,{"$f":"'00'!C6","v":"Название организации, должность, Фамилия И.О."}]
[null,null,null,null,null,"(название организации, должность, ФИО)"]
["Генерального подрядчика",null,null,null,null,{"$f":"'00'!C7","v":"Название организации, должность, Фамилия И.О."}]
[null,null,null,null,null,{"$f":"F9","v":"(название организации, должность, ФИО)"}]
["Заказчика",null,null,null,null,{"$f":"'00'!C8","v":"Название организации, должность, Фамилия И.О."}]
[null,null,null,null,null,{"$f":"F11","v":"(название организации, должность, ФИО)"}]
["Монтажной организации",null,null,null,null,{"$f":"'00'!C9","v":"Название организации, должность, Фамилия И.О."}]
[null,null,null,null,null,{"$f":"F9","v":"(название организации, должность, ФИО)"}]
["Эксплуатирующей организации",null,null,null,null,{"$f":"'00'!C10","v":"Название организации, должность, Фамилия И.О."}]
[null,null,null,null,null,{"$f":"F9","v":"(название организации, должность, ФИО)"}]
[]
["На объекте:"]
[{"$f":"'00'!C1","v":"название объекта"}]
["(указать название объекта)"]
["по адресу:",null,null,{"$f":"'00'!C2","v":"полный адрес объекта"}]
[null,null,null,"(указать адрес объекта)"]
[]
["Произвели осмотр и приемку в эксплуатацию системы внутреннего водостока и выпуска из здания и составили акт о нижеследующем:"]
["1.","Работы выполнены согласно требованиям СНиП и проекта",null,null,null,null,null,null,null,null,null,null,null,null,null,null,null,null,{"$f":"'00'!C12","v":"полный номер объекта"}]
["2.","При испытании внутренних водосточных сетей наполнением водой до уровня наивысшей водосточной воронки, в течение 10 минут утечки воды не было. Сточные воды отводятся нормально."]
[]
[]
[]
[null,"Решение комиссии:"]
["1.","На основании произведенного осмотра и испытаний, предъявленную к сдаче систему внутреннего водостока, считать принятой и допущенной к эксплуатации."]
[]
[]
[]
[{"$f":"A8","v":"Авторского надзора"}]
[{"$f":"F8","v":"Название организации, должность, Фамилия И.О."},null,null,null,null,null,null,null,null,null,"(подпись, расшифровка)"]
[{"$f":"A10","v":"Генерального подрядчика"}]
[{"$f":"F10","v":"Название организации, должность, Фамилия И.О."},null,null,null,null,null,null,null,null,null,{"$f":"K37","v":"(подпись, расшифровка)"}]
[{"$f":"A12","v":"Заказчика"}]
[{"$f":"F12","v":"Название организации, должность, Фамилия И.О."},null,null,null,null,null,null,null,null,null,{"$f":"K39","v":"(подпись, расшифровка)"}]
[{"$f":"A14","v":"Монтажной организации"}]
[{"$f":"F14","v":"Название организации, должность, Фамилия И.О."},null,null,null,null,null,null,null,null,null,{"$f":"K41","v":"(подпись, расшифровка)"}]
[{"$f":"A16","v":"Эксплуатирующей организации"}]
[{"$f":"F16","v":"Название организации, должность, Фамилия И.О."},null,null,null,null,null,null,null,null,null,{"$f":"K43","v":"(подпись, расшифровка)"}]

{"sheet":"15","index":15,"n_rows":45,"n_cols":19,"rows_kept":45,"cut":false,"hidden":false,"merged":[[7,0,8,4],[7,5,7,24],[8,5,8,24],[0,0,0,23],[1,0,1,23],[3,0,3,9],[3,11,3,24],[5,0,5,22],[9,0,10,4],[9,5,9,24],[10,5,10,24],[11,0,12,4],[11,5,11,24],[12,5,12,24],[13,0,14,4],[13,5,13,24],[14,5,14,24],[15,0,16,4],[15,5,15,24],[16,5,16,24],[28,1,28,24],[18,0,18,23],[19,0,19,24],[20,0,20,24],[21,0,21,2],[21,3,21,24],[22,3,22,24],[24,0,24,24],[25,1,25,17],[25,18,25,24],[26,1,26,24],[27,1,27,24],[29,1,29,20],[31,1,31,24],[32,1,32,24],[35,0,35,9],[36,0,36,9],[36,10,36,24],[37,0,37,9],[38,0,38,9],[38,10,38,24],[39,0,39,9],[40,0,40,9],[40,10,40,24],[41,0,41,9],[42,0,42,9],[42,10,42,24],[43,0,43,9],[44,0,44,9],[44,10,44,24]]}
["Акт №______"]
[{"$f":"'00'!C44","v":"Акт приемки системы выпусков внутренней канализации из здания."}]
[]
[{"$f":"'00'!C3","v":"г. Москва"},null,null,null,null,null,null,null,null,null,null,{"$f":"'00'!C4","v":"\"____\"________________ 200__г."}]
[]
["Комиссия в составе представителей:"]
[]
["Авторского надзора",null,null,null,null,{"$f":"'00'!C6","v":"Название организации, должность, Фамилия И.О."}]
[null,null,null,null,null,"(название организации, должность, ФИО)"]
["Генерального подрядчика",null,null,null,null,{"$f":"'00'!C7","v":"Название организации, должность, Фамилия И.О."}]
[null,null,null,null,null,{"$f":"F9","v":"(название организации, должность, ФИО)"}]
["Заказчика",null,null,null,null,{"$f":"'00'!C8","v":"Название организации, должность, Фамилия И.О."}]
[null,null,null,null,null,{"$f":"F11","v":"(название организации, должность, ФИО)"}]
["Монтажной организации",null,null,null,null,{"$f":"'00'!C9","v":"Название организации, должность, Фамилия И.О."}]
[null,null,null,null,null,{"$f":"F9","v":"(название организации, должность, ФИО)"}]
["Эксплуатирующей организации",null,null,null,null,{"$f":"'00'!C10","v":"Название организации, должность, Фамилия И.О."}]
[null,null,null,null,null,{"$f":"F9","v":"(название организации, должность, ФИО)"}]
[]
["На объекте:"]
[{"$f":"'00'!C1","v":"название объекта"}]
["(указать название объекта)"]
["по адресу:",null,null,{"$f":"'00'!C2","v":"полный адрес объекта"}]
[null,null,null,"(указать адрес объекта)"]
[]
["Произвели осмотр и приемку в эксплуатацию системы внутренней канализации и выпуска из здания и составили акт о нижеследующем:"]
["1.","Работы выполнены согласно требованиям СНиП и проекта",null,null,null,null,null,null,null,null,null,null,null,null,null,null,null,null,{"$f":"'00'!C12","v":"полный номер объекта"}]
["2.","При испытании внутренних водосточных сетей наполнением водой до уровня наивысшей водосточной воронки, в течение 10 минут утечки воды не было. Сточные воды отводятся нормально."]
[]
[]
[]
[null,"Решение комиссии:"]
["1.","На основании произведенного осмотра и испытаний, предъявленную к сдаче систему внутренней канализации, считать принятой и допущенной к эксплуатации."]
[]
[]
[]
[{"$f":"A8","v":"Авторского надзора"}]
[{"$f":"F8","v":"Название организации, должность, Фамилия И.О."},null,null,null,null,null,null,null,null,null,"(подпись, расшифровка)"]
[{"$f":"A10","v":"Генерального подрядчика"}]
[{"$f":"F10","v":"Название организации, должность, Фамилия И.О."},null,null,null,null,null,null,null,null,null,{"$f":"K37","v":"(подпись, расшифровка)"}]
[{"$f":"A12","v":"Заказчика"}]
[{"$f":"F12","v":"Название организации, должность, Фамилия И.О."},null,null,null,null,null,null,null,null,null,{"$f":"K39","v":"(подпись, расшифровка)"}]
[{"$f":"A14","v":"Монтажной организации"}]
[{"$f":"F14","v":"Название организации, должность, Фамилия И.О."},null,null,null,null,null,null,null,null,null,{"$f":"K41","v":"(подпись, расшифровка)"}]
[{"$f":"A16","v":"Эксплуатирующей организации"}]
[{"$f":"F16","v":"Название организации, должность, Фамилия И.О."},null,null,null,null,null,null,null,null,null,{"$f":"K43","v":"(подпись, расшифровка)"}]

{"sheet":"16","index":16,"n_rows":45,"n_cols":19,"rows_kept":45,"cut":false,"hidden":false,"merged":[[7,0,8,4],[7,5,7,24],[8,5,8,24],[0,0,0,23],[1,0,1,23],[3,0,3,9],[3,11,3,24],[5,0,5,22],[9,0,10,4],[9,5,9,24],[10,5,10,24],[11,0,12,4],[11,5,11,24],[12,5,12,24],[13,0,14,4],[13,5,13,24],[14,5,14,24],[15,0,16,4],[15,5,15,24],[16,5,16,24],[28,1,28,24],[18,0,18,23],[19,0,19,24],[20,0,20,24],[21,0,21,2],[21,3,21,24],[22,3,22,24],[24,0,24,24],[25,1,25,17],[25,18,25,24],[26,1,26,24],[27,1,27,24],[29,1,29,20],[31,1,31,24],[32,1,32,24],[35,0,35,9],[36,0,36,9],[36,10,36,24],[37,0,37,9],[38,0,38,9],[38,10,38,24],[39,0,39,9],[40,0,40,9],[40,10,40,24],[41,0,41,9],[42,0,42,9],[42,10,42,24],[43,0,43,9],[44,0,44,9],[44,10,44,24]]}
["Акт №______"]
[{"$f":"'00'!C45","v":"Акт приемки системы хозяйственного и горячего водоснабжения."}]
[]
[{"$f":"'00'!C3","v":"г. Москва"},null,null,null,null,null,null,null,null,null,null,{"$f":"'00'!C4","v":"\"____\"________________ 200__г."}]
[]
["Комиссия в составе представителей:"]
[]
["Авторского надзора",null,null,null,null,{"$f":"'00'!C6","v":"Название организации, должность, Фамилия И.О."}]
[null,null,null,null,null,"(название организации, должность, ФИО)"]
["Генерального подрядчика",null,null,null,null,{"$f":"'00'!C7","v":"Название организации, должность, Фамилия И.О."}]
[null,null,null,null,null,{"$f":"F9","v":"(название организации, должность, ФИО)"}]
["Заказчика",null,null,null,null,{"$f":"'00'!C8","v":"Название организации, должность, Фамилия И.О."}]
[null,null,null,null,null,{"$f":"F11","v":"(название организации, должность, ФИО)"}]
["Монтажной организации",null,null,null,null,{"$f":"'00'!C9","v":"Название организации, должность, Фамилия И.О."}]
[null,null,null,null,null,{"$f":"F9","v":"(название организации, должность, ФИО)"}]
["Эксплуатирующей организации",null,null,null,null,{"$f":"'00'!C10","v":"Название организации, должность, Фамилия И.О."}]
[null,null,null,null,null,{"$f":"F9","v":"(название организации, должность, ФИО)"}]
[]
["На объекте:"]
[{"$f":"'00'!C1","v":"название объекта"}]
["(указать название объекта)"]
["по адресу:",null,null,{"$f":"'00'!C2","v":"полный адрес объекта"}]
[null,null,null,"(указать адрес объекта)"]
[]
["Произвели осмотр и приемку в эксплуатацию систем хозяйственного и горячего водоснабжения на эффект действия и составили акт о нижеследующем:"]
["1.","Работы выполнены согласно требованиям СНиП и проекта",null,null,null,null,null,null,null,null,null,null,null,null,null,null,null,null,{"$f":"'00'!C12","v":"полный номер объекта"}]
["2.","Системы испытаны гидравлическим/манометрическим методом (ненужное зачеркнуть) давлением на _____атм."]
["3.","При испытании на эффект внутренних систем водоснабжения установлено, что холодная и горячая вода поступала нормально во все водоразборные точки."]
["4.","Договор на установку квартирных водосчетчиков холодной и горячей воды заключен со специализированной организацией _____________________________________________"]
[]
[null,"Решение комиссии:"]
["1.","На основании произведенного осмотра и испытаний, предъявленные к сдаче системы внутреннего хозяйственого и горячего водоснабжения, считать принятыми и допущенными к эксплуатации."]
[]
[]
[]
[{"$f":"A8","v":"Авторского надзора"}]
[{"$f":"F8","v":"Название организации, должность, Фамилия И.О."},null,null,null,null,null,null,null,null,null,"(подпись, расшифровка)"]
[{"$f":"A10","v":"Генерального подрядчика"}]
[{"$f":"F10","v":"Название организации, должность, Фамилия И.О."},null,null,null,null,null,null,null,null,null,{"$f":"K37","v":"(подпись, расшифровка)"}]
[{"$f":"A12","v":"Заказчика"}]
[{"$f":"F12","v":"Название организации, должность, Фамилия И.О."},null,null,null,null,null,null,null,null,null,{"$f":"K39","v":"(подпись, расшифровка)"}]
[{"$f":"A14","v":"Монтажной организации"}]
[{"$f":"F14","v":"Название организации, должность, Фамилия И.О."},null,null,null,null,null,null,null,null,null,{"$f":"K41","v":"(подпись, расшифровка)"}]
[{"$f":"A16","v":"Эксплуатирующей организации"}]
[{"$f":"F16","v":"Название организации, должность, Фамилия И.О."},null,null,null,null,null,null,null,null,null,{"$f":"K43","v":"(подпись, расшифровка)"}]

{"sheet":"17","index":17,"n_rows":49,"n_cols":19,"rows_kept":49,"cut":false,"hidden":false,"merged":[[7,0,8,4],[7,5,7,24],[8,5,8,24],[0,0,0,23],[1,0,1,23],[3,0,3,9],[3,11,3,24],[5,0,5,22],[9,0,10,4],[9,5,9,24],[10,5,10,24],[11,0,12,4],[11,5,11,24],[12,5,12,24],[22,3,22,24],[13,0,14,4],[13,5,13,24],[14,5,14,24],[15,0,16,4],[15,5,15,24],[16,5,16,24],[18,0,18,23],[19,0,19,24],[20,0,20,24],[21,0,21,2],[21,3,21,24],[40,0,40,9],[40,10,40,24],[24,0,24,12],[25,1,25,17],[25,18,25,24],[26,1,26,24],[27,0,28,0],[27,1,28,24],[31,1,31,20],[33,0,35,0],[33,1,35,24],[36,1,36,24],[39,0,39,9],[41,0,41,9],[42,0,42,9],[42,10,42,24],[43,0,43,9],[44,0,44,9],[44,10,44,24],[45,0,45,9],[46,0,46,9],[46,10,46,24],[47,0,47,9],[48,0,48,9],[48,10,48,24]]}
["Акт №______"]
[{"$f":"'00'!C46","v":"Акт гидравлического испытания системы холодного водоснабжения."}]
[]
[{"$f":"'00'!C3","v":"г. Москва"},null,null,null,null,null,null,null,null,null,null,{"$f":"'00'!C4","v":"\"____\"________________ 200__г."}]
[]
["Комиссия в составе представителей:"]
[]
["Авторского надзора",null,null,null,null,{"$f":"'00'!C6","v":"Название организации, должность, Фамилия И.О."}]
[null,null,null,null,null,"(название организации, должность, ФИО)"]
["Генерального подрядчика",null,null,null,null,{"$f":"'00'!C7","v":"Название организации, должность, Фамилия И.О."}]
[null,null,null,null,null,{"$f":"F9","v":"(название организации, должность, ФИО)"}]
["Заказчика",null,null,null,null,{"$f":"'00'!C8","v":"Название организации, должность, Фамилия И.О."}]
[null,null,null,null,null,{"$f":"F11","v":"(название организации, должность, ФИО)"}]
["Монтажной организации",null,null,null,null,{"$f":"'00'!C9","v":"Название организации, должность, Фамилия И.О."}]
[null,null,null,null,null,{"$f":"F9","v":"(название организации, должность, ФИО)"}]
["Эксплуатирующей организации",null,null,null,null,{"$f":"'00'!C10","v":"Название организации, должность, Фамилия И.О."}]
[null,null,null,null,null,{"$f":"F9","v":"(название организации, должность, ФИО)"}]
[]
["На объекте:"]
[{"$f":"'00'!C1","v":"название объекта"}]
["(указать название объекта)"]
["по адресу:",null,null,{"$f":"'00'!C2","v":"полный адрес объекта"}]
[null,null,null,"(указать адрес объекта)"]
[]
["Составили настоящий акт о нижеследующем:"]
["1.","Работы выполнены согласно требованиям СНиП и проекта",null,null,null,null,null,null,null,null,null,null,null,null,null,null,null,null,{"$f":"'00'!C12","v":"полный номер объекта"}]
["2.","Испытание проведено манометрическим/гидравлическим методом (ненужное зачеркнуть). давлением   __ атм, в течении ____мин падение давления составило _____атм."]
["3.","Признаков разрыва или нарушения прочности соединения котлов и водонагревателей, капель в сварных швах, резьбовых соединениях, отопительных приборах, на поверхности труб, арматуры и утечки воды через водоразборную арматуру, сливные устройства и т.п. не обнаружено.(ненужное зачеркнуть)."]
[]
[]
[]
[]
[null,"Решение комиссии:"]
["1.","Монтаж выполнен в соответствии с проектной документацией, действующими техническими условиями, стандартами, строительными нормами и правилами производства и приемки работ."]
[]
[]
["2.","Система признается выдержавшей испытание на герметичность."]
[]
[]
[{"$f":"A8","v":"Авторского надзора"}]
[{"$f":"F8","v":"Название организации, должность, Фамилия И.О."},null,null,null,null,null,null,null,null,null,"(подпись, расшифровка)"]
[{"$f":"A10","v":"Генерального подрядчика"}]
[{"$f":"F10","v":"Название организации, должность, Фамилия И.О."},null,null,null,null,null,null,null,null,null,{"$f":"K41","v":"(подпись, расшифровка)"}]
[{"$f":"A12","v":"Заказчика"}]
[{"$f":"F12","v":"Название организации, должность, Фамилия И.О."},null,null,null,null,null,null,null,null,null,{"$f":"K43","v":"(подпись, расшифровка)"}]
[{"$f":"A14","v":"Монтажной организации"}]
[{"$f":"F14","v":"Название организации, должность, Фамилия И.О."},null,null,null,null,null,null,null,null,null,{"$f":"K45","v":"(подпись, расшифровка)"}]
[{"$f":"A16","v":"Эксплуатирующей организации"}]
[{"$f":"F16","v":"Название организации, должность, Фамилия И.О."},null,null,null,null,null,null,null,null,null,{"$f":"K47","v":"(подпись, расшифровка)"}]

{"sheet":"18","index":18,"n_rows":49,"n_cols":19,"rows_kept":49,"cut":false,"hidden":false,"merged":[[7,0,8,4],[7,5,7,24],[8,5,8,24],[0,0,0,23],[1,0,1,23],[3,0,3,9],[3,11,3,24],[5,0,5,22],[9,0,10,4],[9,5,9,24],[10,5,10,24],[11,0,12,4],[11,5,11,24],[12,5,12,24],[22,3,22,24],[13,0,14,4],[13,5,13,24],[14,5,14,24],[15,0,16,4],[15,5,15,24],[16,5,16,24],[18,0,18,23],[19,0,19,24],[20,0,20,24],[21,0,21,2],[21,3,21,24],[40,0,40,9],[40,10,40,24],[24,0,24,12],[25,1,25,17],[25,18,25,24],[26,1,26,24],[27,0,28,0],[27,1,28,24],[31,1,31,20],[33,0,35,0],[33,1,35,24],[36,1,36,24],[39,0,39,9],[41,0,41,9],[42,0,42,9],[42,10,42,24],[43,0,43,9],[44,0,44,9],[44,10,44,24],[45,0,45,9],[46,0,46,9],[46,10,46,24],[47,0,47,9],[48,0,48,9],[48,10,48,24]]}
["Акт №______"]
[{"$f":"'00'!C47","v":"Акт гидравлического испытания системы горячего водоснабжения."}]
[]
[{"$f":"'00'!C3","v":"г. Москва"},null,null,null,null,null,null,null,null,null,null,{"$f":"'00'!C4","v":"\"____\"________________ 200__г."}]
[]
["Комиссия в составе представителей:"]
[]
["Авторского надзора",null,null,null,null,{"$f":"'00'!C6","v":"Название организации, должность, Фамилия И.О."}]
[null,null,null,null,null,"(название организации, должность, ФИО)"]
["Генерального подрядчика",null,null,null,null,{"$f":"'00'!C7","v":"Название организации, должность, Фамилия И.О."}]
[null,null,null,null,null,{"$f":"F9","v":"(название организации, должность, ФИО)"}]
["Заказчика",null,null,null,null,{"$f":"'00'!C8","v":"Название организации, должность, Фамилия И.О."}]
[null,null,null,null,null,{"$f":"F11","v":"(название организации, должность, ФИО)"}]
["Монтажной организации",null,null,null,null,{"$f":"'00'!C9","v":"Название организации, должность, Фамилия И.О."}]
[null,null,null,null,null,{"$f":"F9","v":"(название организации, должность, ФИО)"}]
["Эксплуатирующей организации",null,null,null,null,{"$f":"'00'!C10","v":"Название организации, должность, Фамилия И.О."}]
[null,null,null,null,null,{"$f":"F9","v":"(название организации, должность, ФИО)"}]
[]
["На объекте:"]
[{"$f":"'00'!C1","v":"название объекта"}]
["(указать название объекта)"]
["по адресу:",null,null,{"$f":"'00'!C2","v":"полный адрес объекта"}]
[null,null,null,"(указать адрес объекта)"]
[]
["Составили настоящий акт о нижеследующем:"]
["1.","Работы выполнены согласно требованиям СНиП и проекта",null,null,null,null,null,null,null,null,null,null,null,null,null,null,null,null,{"$f":"'00'!C12","v":"полный номер объекта"}]
["2.","Испытание проведено манометрическим/гидравлическим методом (ненужное зачеркнуть). давлением   __ атм, в течении ____мин падение давления составило _____атм."]
["3.","Признаков разрыва или нарушения прочности соединения котлов и водонагревателей, капель в сварных швах, резьбовых соединениях, отопительных приборах, на поверхности труб, арматуры и утечки воды через водоразборную арматуру, сливные устройства и т.п. не обнаружено.(ненужное зачеркнуть)."]
[]
[]
[]
[]
[null,"Решение комиссии:"]
["1.","Монтаж выполнен в соответствии с проектной документацией, действующими техническими условиями, стандартами, строительными нормами и правилами производства и приемки работ."]
[]
[]
["2.","Система признается выдержавшей испытание на герметичность."]
[]
[]
[{"$f":"A8","v":"Авторского надзора"}]
[{"$f":"F8","v":"Название организации, должность, Фамилия И.О."},null,null,null,null,null,null,null,null,null,"(подпись, расшифровка)"]
[{"$f":"A10","v":"Генерального подрядчика"}]
[{"$f":"F10","v":"Название организации, должность, Фамилия И.О."},null,null,null,null,null,null,null,null,null,{"$f":"K41","v":"(подпись, расшифровка)"}]
[{"$f":"A12","v":"Заказчика"}]
[{"$f":"F12","v":"Название организации, должность, Фамилия И.О."},null,null,null,null,null,null,null,null,null,{"$f":"K43","v":"(подпись, расшифровка)"}]
[{"$f":"A14","v":"Монтажной организации"}]
[{"$f":"F14","v":"Название организации, должность, Фамилия И.О."},null,null,null,null,null,null,null,null,null,{"$f":"K45","v":"(подпись, расшифровка)"}]
[{"$f":"A16","v":"Эксплуатирующей организации"}]
[{"$f":"F16","v":"Название организации, должность, Фамилия И.О."},null,null,null,null,null,null,null,null,null,{"$f":"K47","v":"(подпись, расшифровка)"}]

{"sheet":"19","index":19,"n_rows":47,"n_cols":19,"rows_kept":47,"cut":false,"hidden":false,"merged":[[7,0,8,4],[7,5,7,24],[8,5,8,24],[0,0,0,23],[1,0,1,23],[3,0,3,9],[3,11,3,24],[5,0,5,22],[9,0,10,4],[9,5,9,24],[10,5,10,24],[11,0,12,4],[11,5,11,24],[12,5,12,24],[13,0,14,4],[13,5,13,24],[14,5,14,24],[15,0,16,4],[15,5,15,24],[16,5,16,24],[28,1,28,24],[18,0,18,23],[19,0,19,24],[20,0,20,24],[21,0,21,2],[21,3,21,24],[22,3,22,24],[24,0,24,12],[25,1,25,17],[25,18,25,24],[26,1,26,24],[27,1,27,24],[31,1,31,20],[33,1,33,24],[34,1,34,24],[37,0,37,9],[38,0,38,9],[38,10,38,24],[39,0,39,9],[40,0,40,9],[40,10,40,24],[41,0,41,9],[42,0,42,9],[42,10,42,24],[43,0,43,9],[44,0,44,9],[44,10,44,24],[45,0,45,9],[46,0,46,9],[46,10,46,24]]}
["Акт №______"]
[{"$f":"'00'!C48","v":"Акт промывки системы холодного водоснабжения."}]
[]
[{"$f":"'00'!C3","v":"г. Москва"},null,null,null,null,null,null,null,null,null,null,{"$f":"'00'!C4","v":"\"____\"________________ 200__г."}]
[]
["Комиссия в составе представителей:"]
[]
["Авторского надзора",null,null,null,null,{"$f":"'00'!C6","v":"Название организации, должность, Фамилия И.О."}]
[null,null,null,null,null,"(название организации, должность, ФИО)"]
["Генерального подрядчика",null,null,null,null,{"$f":"'00'!C7","v":"Название организации, должность, Фамилия И.О."}]
[null,null,null,null,null,{"$f":"F9","v":"(название организации, должность, ФИО)"}]
["Заказчика",null,null,null,null,{"$f":"'00'!C8","v":"Название организации, должность, Фамилия И.О."}]
[null,null,null,null,null,{"$f":"F11","v":"(название организации, должность, ФИО)"}]
["Монтажной организации",null,null,null,null,{"$f":"'00'!C9","v":"Название организации, должность, Фамилия И.О."}]
[null,null,null,null,null,{"$f":"F9","v":"(название организации, должность, ФИО)"}]
["Эксплуатирующей организации",null,null,null,null,{"$f":"'00'!C10","v":"Название организации, должность, Фамилия И.О."}]
[null,null,null,null,null,{"$f":"F9","v":"(название организации, должность, ФИО)"}]
[]
["На объекте:"]
[{"$f":"'00'!C1","v":"название объекта"}]
["(указать название объекта)"]
["по адресу:",null,null,{"$f":"'00'!C2","v":"полный адрес объекта"}]
[null,null,null,"(указать адрес объекта)"]
[]
["Составили настоящий акт о нижеследующем:"]
["1.","Работы выполнены согласно требованиям СНиП и проекта",null,null,null,null,null,null,null,null,null,null,null,null,null,null,null,null,{"$f":"'00'!C12","v":"полный номер объекта"}]
["2.","Была произведена промывка системы отопления диаметр ввода _____, давление ____, длина ввода ____, диаметр сливного отверстия _____, время промывки _____"]
[]
[]
[]
[]
[]
[null,"Решение комиссии:"]
["1.","Система холодного водоснабжения промыта в полном объеме."]
[]
[]
[]
[{"$f":"A8","v":"Авторского надзора"}]
[{"$f":"F8","v":"Название организации, должность, Фамилия И.О."},null,null,null,null,null,null,null,null,null,"(подпись, расшифровка)"]
[{"$f":"A10","v":"Генерального подрядчика"}]
[{"$f":"F10","v":"Название организации, должность, Фамилия И.О."},null,null,null,null,null,null,null,null,null,{"$f":"K39","v":"(подпись, расшифровка)"}]
[{"$f":"A12","v":"Заказчика"}]
[{"$f":"F12","v":"Название организации, должность, Фамилия И.О."},null,null,null,null,null,null,null,null,null,{"$f":"K41","v":"(подпись, расшифровка)"}]
[{"$f":"A14","v":"Монтажной организации"}]
[{"$f":"F14","v":"Название организации, должность, Фамилия И.О."},null,null,null,null,null,null,null,null,null,{"$f":"K43","v":"(подпись, расшифровка)"}]
[{"$f":"A16","v":"Эксплуатирующей организации"}]
[{"$f":"F16","v":"Название организации, должность, Фамилия И.О."},null,null,null,null,null,null,null,null,null,{"$f":"K45","v":"(подпись, расшифровка)"}]

{"sheet":"20","index":20,"n_rows":47,"n_cols":19,"rows_kept":47,"cut":false,"hidden":false,"merged":[[7,0,8,4],[7,5,7,24],[8,5,8,24],[0,0,0,23],[1,0,1,23],[3,0,3,9],[3,11,3,24],[5,0,5,22],[9,0,10,4],[9,5,9,24],[10,5,10,24],[11,0,12,4],[11,5,11,24],[12,5,12,24],[13,0,14,4],[13,5,13,24],[14,5,14,24],[15,0,16,4],[15,5,15,24],[16,5,16,24],[28,1,28,24],[18,0,18,23],[19,0,19,24],[20,0,20,24],[21,0,21,2],[21,3,21,24],[22,3,22,24],[24,0,24,12],[25,1,25,17],[25,18,25,24],[26,1,26,24],[27,1,27,24],[31,1,31,20],[33,1,33,24],[34,1,34,24],[37,0,37,9],[38,0,38,9],[38,10,38,24],[39,0,39,9],[40,0,40,9],[40,10,40,24],[41,0,41,9],[42,0,42,9],[42,10,42,24],[43,0,43,9],[44,0,44,9],[44,10,44,24],[45,0,45,9],[46,0,46,9],[46,10,46,24]]}
["Акт №______"]
[{"$f":"'00'!C49","v":"Акт промывки системы горячего водоснабжения."}]
[]
[{"$f":"'00'!C3","v":"г. Москва"},null,null,null,null,null,null,null,null,null,null,{"$f":"'00'!C4","v":"\"____\"________________ 200__г."}]
[]
["Комиссия в составе представителей:"]
[]
["Авторского надзора",null,null,null,null,{"$f":"'00'!C6","v":"Название организации, должность, Фамилия И.О."}]
[null,null,null,null,null,"(название организации, должность, ФИО)"]
["Генерального подрядчика",null,null,null,null,{"$f":"'00'!C7","v":"Название организации, должность, Фамилия И.О."}]
[null,null,null,null,null,{"$f":"F9","v":"(название организации, должность, ФИО)"}]
["Заказчика",null,null,null,null,{"$f":"'00'!C8","v":"Название организации, должность, Фамилия И.О."}]
[null,null,null,null,null,{"$f":"F11","v":"(название организации, должность, ФИО)"}]
["Монтажной организации",null,null,null,null,{"$f":"'00'!C9","v":"Название организации, должность, Фамилия И.О."}]
[null,null,null,null,null,{"$f":"F9","v":"(название организации, должность, ФИО)"}]
["Эксплуатирующей организации",null,null,null,null,{"$f":"'00'!C10","v":"Название организации, должность, Фамилия И.О."}]
[null,null,null,null,null,{"$f":"F9","v":"(название организации, должность, ФИО)"}]
[]
["На объекте:"]
[{"$f":"'00'!C1","v":"название объекта"}]
["(указать название объекта)"]
["по адресу:",null,null,{"$f":"'00'!C2","v":"полный адрес объекта"}]
[null,null,null,"(указать адрес объекта)"]
[]
["Составили настоящий акт о нижеследующем:"]
["1.","Работы выполнены согласно требованиям СНиП и проекта",null,null,null,null,null,null,null,null,null,null,null,null,null,null,null,null,{"$f":"'00'!C12","v":"полный номер объекта"}]
["2.","Была произведена промывка системы отопления диаметр ввода _____, давление ____, длина ввода ____, диаметр сливного отверстия _____, время промывки _____"]
[]
[]
[]
[]
[]
[null,"Решение комиссии:"]
["1.","Система горячего водоснабжения промыта в полном объеме."]
[]
[]
[]
[{"$f":"A8","v":"Авторского надзора"}]
[{"$f":"F8","v":"Название организации, должность, Фамилия И.О."},null,null,null,null,null,null,null,null,null,"(подпись, расшифровка)"]
[{"$f":"A10","v":"Генерального подрядчика"}]
[{"$f":"F10","v":"Название организации, должность, Фамилия И.О."},null,null,null,null,null,null,null,null,null,{"$f":"K39","v":"(подпись, расшифровка)"}]
[{"$f":"A12","v":"Заказчика"}]
[{"$f":"F12","v":"Название организации, должность, Фамилия И.О."},null,null,null,null,null,null,null,null,null,{"$f":"K41","v":"(подпись, расшифровка)"}]
[{"$f":"A14","v":"Монтажной организации"}]
[{"$f":"F14","v":"Название организации, должность, Фамилия И.О."},null,null,null,null,null,null,null,null,null,{"$f":"K43","v":"(подпись, расшифровка)"}]
[{"$f":"A16","v":"Эксплуатирующей организации"}]
[{"$f":"F16","v":"Название организации, должность, Фамилия И.О."},null,null,null,null,null,null,null,null,null,{"$f":"K45","v":"(подпись, расшифровка)"}]

{"sheet":"21","index":21,"n_rows":49,"n_cols":15,"rows_kept":49,"cut":false,"hidden":false,"merged":[[7,0,8,4],[7,5,7,24],[8,5,8,24],[0,0,0,23],[1,0,1,23],[3,0,3,9],[3,11,3,24],[5,0,5,22],[9,0,10,4],[9,5,9,24],[10,5,10,24],[11,0,12,4],[11,5,11,24],[12,5,12,24],[22,3,22,24],[13,0,14,4],[13,5,13,24],[14,5,14,24],[15,0,16,4],[15,5,15,24],[16,5,16,24],[18,0,18,23],[19,0,19,24],[20,0,20,24],[21,0,21,2],[21,3,21,24],[24,0,24,24],[26,1,26,23],[28,1,28,13],[28,14,28,23],[29,1,29,23],[25,1,25,24],[27,1,27,23],[30,1,30,20],[33,0,35,0],[33,1,35,24],[39,0,39,9],[40,0,40,9],[40,10,40,24],[36,1,36,3],[36,4,36,24],[37,1,37,20],[41,0,41,9],[42,0,42,9],[42,10,42,24],[43,0,43,9],[44,0,44,9],[44,10,44,24],[45,0,45,9],[46,0,46,9],[46,10,46,24],[47,0,47,9],[48,0,48,9],[48,10,48,24]]}
["Акт №______"]
[{"$f":"'00'!C52","v":"Акт приемки системы кондиционирования воздуха."}]
[]
[{"$f":"'00'!C3","v":"г. Москва"},null,null,null,null,null,null,null,null,null,null,{"$f":"'00'!C4","v":"\"____\"________________ 200__г."}]
[]
["Комиссия в составе представителей:"]
[]
["Авторского надзора",null,null,null,null,{"$f":"'00'!C6","v":"Название организации, должность, Фамилия И.О."}]
[null,null,null,null,null,"(название организации, должность, ФИО)"]
["Генерального подрядчика",null,null,null,null,{"$f":"'00'!C7","v":"Название организации, должность, Фамилия И.О."}]
[null,null,null,null,null,{"$f":"F9","v":"(название организации, должность, ФИО)"}]
["Заказчика",null,null,null,null,{"$f":"'00'!C8","v":"Название организации, должность, Фамилия И.О."}]
[null,null,null,null,null,{"$f":"F11","v":"(название организации, должность, ФИО)"}]
["Монтажной организации",null,null,null,null,{"$f":"'00'!C9","v":"Название организации, должность, Фамилия И.О."}]
[null,null,null,null,null,{"$f":"F9","v":"(название организации, должность, ФИО)"}]
["Эксплуатирующей организации",null,null,null,null,{"$f":"'00'!C10","v":"Название организации, должность, Фамилия И.О."}]
[null,null,null,null,null,{"$f":"F9","v":"(название организации, должность, ФИО)"}]
[]
["На объекте:"]
[{"$f":"'00'!C1","v":"название объекта"}]
["(указать название объекта)"]
["по адресу:",null,null,{"$f":"'00'!C2","v":"полный адрес объекта"}]
[null,null,null,"(указать адрес объекта)"]
[]
["Составили акт о нижеследующем:"]
["1.","К сдаче предъявлены следующие системы кондиционирования воздуха"]
[null,{"$f":"'00'!C15","v":"номера систем К1 и т.д."}]
[null,"(указать номера систем)"]
["2.","Работы выполнены согласно СНиП и проекта",null,null,null,null,null,null,null,null,null,null,null,null,{"$f":"'00'!C12","v":"полный номер объекта"}]
["3.","При включении кондиционеров не слышно посторонних шумов и чувствуется движение холодного воздуха из внутреннего блока кондиционера."]
[]
[]
[null,"Решение комиссии:"]
["1.","Монтаж выполнен в соответствии с проектной документацией, действующими техническими условиями, стандартами, строительными нормами и правилами производства и приемки работ."]
[]
[]
[2,"Системы",null,null,{"$f":"B27","v":"номера систем К1 и т.д."}]
[null,"признается выдержавшей испытание и принята к эксплуатации"]
[]
[{"$f":"A8","v":"Авторского надзора"}]
[{"$f":"F8","v":"Название организации, должность, Фамилия И.О."},null,null,null,null,null,null,null,null,null,"(подпись, расшифровка)"]
[{"$f":"A10","v":"Генерального подрядчика"}]
[{"$f":"F10","v":"Название организации, должность, Фамилия И.О."},null,null,null,null,null,null,null,null,null,{"$f":"K41","v":"(подпись, расшифровка)"}]
[{"$f":"A12","v":"Заказчика"}]
[{"$f":"F12","v":"Название организации, должность, Фамилия И.О."},null,null,null,null,null,null,null,null,null,{"$f":"K43","v":"(подпись, расшифровка)"}]
[{"$f":"A14","v":"Монтажной организации"}]
[{"$f":"F14","v":"Название организации, должность, Фамилия И.О."},null,null,null,null,null,null,null,null,null,{"$f":"K45","v":"(подпись, расшифровка)"}]
[{"$f":"A16","v":"Эксплуатирующей организации"}]
[{"$f":"F16","v":"Название организации, должность, Фамилия И.О."},null,null,null,null,null,null,null,null,null,{"$f":"K47","v":"(подпись, расшифровка)"}]

{"sheet":"22","index":22,"n_rows":38,"n_cols":12,"rows_kept":38,"cut":false,"hidden":false,"merged":[[0,0,0,23],[1,0,1,23],[3,0,3,9],[3,11,3,24],[5,0,5,22],[9,0,10,4],[9,5,9,24],[10,5,10,24],[7,0,8,4],[7,5,7,24],[8,5,8,24],[18,0,18,24],[19,1,19,24],[20,1,20,23],[12,0,12,23],[13,0,13,24],[14,0,14,24],[15,0,15,2],[15,3,15,24],[16,3,16,24],[37,0,37,9],[37,10,37,24],[32,1,32,20],[21,1,21,23],[30,1,30,24],[31,1,31,24],[27,1,27,23],[34,0,34,9],[35,0,35,9],[35,10,35,24],[36,0,36,9],[22,1,22,23],[23,1,23,23],[24,1,24,23],[26,1,26,23],[25,1,25,23]]}
["Акт №______"]
[{"$f":"'00'!C53","v":"Акт передачи исполнительной документации"}]
[]
[{"$f":"'00'!C3","v":"г. Москва"},null,null,null,null,null,null,null,null,null,null,{"$f":"'00'!C4","v":"\"____\"________________ 200__г."}]
[]
["Комиссия в составе представителей:"]
[]
["Заказчика",null,null,null,null,{"$f":"'00'!C8","v":"Название организации, должность, Фамилия И.О."}]
[null,null,null,null,null,"(название организации, должность, ФИО)"]
["Монтажной организации",null,null,null,null,{"$f":"'00'!C9","v":"Название организации, должность, Фамилия И.О."}]
[null,null,null,null,null,{"$f":"F9","v":"(название организации, должность, ФИО)"}]
[]
["На объекте:"]
[{"$f":"'00'!C1","v":"название объекта"}]
["(указать название объекта)"]
["по адресу:",null,null,{"$f":"'00'!C2","v":"полный адрес объекта"}]
[null,null,null,"(указать адрес объекта)"]
[]
["Составили акт о нижеследующем:"]
["1.","К предаче представлены:"]
[null,"Исполнительная документация на систему вентиляции"]
[null,"Исполнительная документация на систему отопления"]
[null,"Исполнительная документация на систему теплоснабжения"]
[null,"Исполнительная документация на систему холодного и горячего водоснабжения"]
[null,"Исполнительная документация на систему канализации"]
[null,"Исполнительная документация на систему водостоков"]
[null,"Паспорта на оборудования"]
[null,"Сертификаты"]
[]
[null,"Решение комиссии:"]
["1.","Документация выполнена в полном объеме."]
[2,"Документация считается принятой заказчиком."]
[]
[]
[{"$f":"A8","v":"Заказчика"}]
[{"$f":"F8","v":"Название организации, должность, Фамилия И.О."},null,null,null,null,null,null,null,null,null,{"$f":"'21'!K49:Y49","v":"(подпись, расшифровка)"}]
[{"$f":"A10","v":"Монтажной организации"}]
[{"$f":"F10","v":"Название организации, должность, Фамилия И.О."},null,null,null,null,null,null,null,null,null,{"$f":"K36","v":"(подпись, расшифровка)"}]

{"sheet":"23","index":23,"n_rows":52,"n_cols":19,"rows_kept":52,"cut":false,"hidden":false,"merged":[[7,0,8,4],[7,5,7,24],[8,5,8,24],[0,0,0,23],[1,0,1,23],[3,0,3,9],[3,11,3,24],[5,0,5,22],[2,18,2,24],[9,0,10,4],[9,5,9,24],[10,5,10,24],[11,0,12,4],[11,5,11,24],[12,5,12,24],[22,3,22,24],[13,0,14,4],[13,5,13,24],[14,5,14,24],[15,0,16,4],[15,5,15,24],[16,5,16,24],[18,0,18,23],[19,0,19,24],[20,0,20,24],[21,0,21,2],[21,3,21,24],[24,0,24,24],[26,1,26,23],[27,1,27,23],[28,1,28,13],[28,14,28,23],[25,1,25,16],[25,17,25,23],[29,1,29,10],[29,11,29,23],[32,6,32,16],[32,1,32,5],[33,1,33,6],[45,10,45,24],[36,0,38,0],[36,1,38,24],[30,1,30,23],[31,1,31,23],[33,7,33,18],[50,0,50,9],[51,0,51,9],[51,10,51,24],[39,1,39,24],[46,0,46,9],[47,0,47,9],[47,10,47,24],[48,0,48,9],[49,0,49,9],[49,10,49,24],[40,1,40,20],[42,0,42,9],[43,0,43,9],[43,10,43,24],[44,0,44,9],[45,0,45,9]]}
["Акт №______"]
[{"$f":"'00'!C54","v":"Скрытые работы."}]
[null,null,null,null,null,null,null,null,null,null,null,null,null,null,null,null,null,null,"Форма ИГАСН №11/94"]
[{"$f":"'00'!C3","v":"г. Москва"},null,null,null,null,null,null,null,null,null,null,{"$f":"'00'!C4","v":"\"____\"________________ 200__г."}]
[]
["Комиссия в составе представителей:"]
[]
["Авторского надзора",null,null,null,null,{"$f":"'00'!C6","v":"Название организации, должность, Фамилия И.О."}]
[null,null,null,null,null,"(название организации, должность, ФИО)"]
["Генерального подрядчика",null,null,null,null,{"$f":"'00'!C7","v":"Название организации, должность, Фамилия И.О."}]
[null,null,null,null,null,{"$f":"F9","v":"(название организации, должность, ФИО)"}]
["Заказчика",null,null,null,null,{"$f":"'00'!C8","v":"Название организации, должность, Фамилия И.О."}]
[null,null,null,null,null,{"$f":"F11","v":"(название организации, должность, ФИО)"}]
["Монтажной организации",null,null,null,null,{"$f":"'00'!C9","v":"Название организации, должность, Фамилия И.О."}]
[null,null,null,null,null,{"$f":"F9","v":"(название организации, должность, ФИО)"}]
["Эксплуатирующей организации",null,null,null,null,{"$f":"'00'!C10","v":"Название организации, должность, Фамилия И.О."}]
[null,null,null,null,null,{"$f":"F9","v":"(название организации, должность, ФИО)"}]
[]
["На объекте:"]
[{"$f":"'00'!C1","v":"название объекта"}]
["(указать название объекта)"]
["по адресу:",null,null,{"$f":"'00'!C2","v":"полный адрес объекта"}]
[null,null,null,"(указать адрес объекта)"]
[]
["Составили акт о нижеследующем:"]
["1.","К осведетельствованию предъявлены следующие работы: "]
[]
[]
["2.","Работы выполнены согласно СНиП и проекта",null,null,null,null,null,null,null,null,null,null,null,null,{"$f":"'00'!C12","v":"полный номер объекта"}]
["3.","При выполнении работ применены: "]
[]
[]
["4.","Дата начала работ",null,null,null,null,"\"____\" _____________________ 200__г."]
["5.","Дата окончания работ",null,null,null,null,null,{"$f":"G33","v":"\"____\" _____________________ 200__г."}]
[]
[null,"Решение комиссии:"]
["1.","Монтаж выполнен в соответствии с проектной документацией, действующими техническими условиями, стандартами, строительными нормами и правилами производства и приемки работ."]
[]
[]
[2,"Считать скрытые работы выполнеными в полном объеме"]
[]
[]
[{"$f":"A8","v":"Авторского надзора"}]
[{"$f":"F8","v":"Название организации, должность, Фамилия И.О."},null,null,null,null,null,null,null,null,null,"(подпись, расшифровка)"]
[{"$f":"A10","v":"Генерального подрядчика"}]
[{"$f":"F10","v":"Название организации, должность, Фамилия И.О."},null,null,null,null,null,null,null,null,null,{"$f":"K44","v":"(подпись, расшифровка)"}]
[{"$f":"A12","v":"Заказчика"}]
[{"$f":"F12","v":"Название организации, должность, Фамилия И.О."},null,null,null,null,null,null,null,null,null,{"$f":"K46","v":"(подпись, расшифровка)"}]
[{"$f":"A14","v":"Монтажной организации"}]
[{"$f":"F14","v":"Название организации, должность, Фамилия И.О."},null,null,null,null,null,null,null,null,null,{"$f":"K48","v":"(подпись, расшифровка)"}]
[{"$f":"A16","v":"Эксплуатирующей организации"}]
[{"$f":"F16","v":"Название организации, должность, Фамилия И.О."},null,null,null,null,null,null,null,null,null,{"$f":"K50","v":"(подпись, расшифровка)"}]

{"sheet":"24","index":24,"n_rows":42,"n_cols":18,"rows_kept":42,"cut":false,"hidden":false,"merged":[[38,0,38,9],[39,0,39,9],[39,10,39,24],[40,0,40,9],[41,0,41,9],[41,10,41,24],[34,0,34,9],[35,0,35,9],[35,10,35,24],[36,0,36,9],[37,0,37,9],[37,10,37,24],[30,1,30,20],[32,0,32,9],[33,0,33,9],[33,10,33,24],[27,1,27,23],[28,1,28,23],[26,1,26,10],[26,11,26,23],[21,0,21,2],[21,3,21,24],[22,3,22,24],[24,0,24,24],[25,1,25,16],[25,17,25,23],[20,0,20,24],[11,0,12,4],[11,5,11,24],[12,5,12,24],[13,0,14,4],[13,5,13,24],[14,5,14,24],[15,0,16,4],[15,5,15,24],[16,5,16,24],[18,0,18,23],[19,0,19,24],[7,0,8,4],[7,5,7,24],[8,5,8,24],[9,0,10,4],[9,5,9,24],[10,5,10,24],[5,0,5,22],[0,0,0,23],[1,0,1,23],[2,18,2,24],[3,0,3,9],[3,11,3,24]]}
["Акт №______"]
["Замеров расхода и давления воздуха"]
[]
[{"$f":"'00'!C3","v":"г. Москва"},null,null,null,null,null,null,null,null,null,null,{"$f":"'00'!C4","v":"\"____\"________________ 200__г."}]
[]
["Комиссия в составе представителей:"]
[]
["Авторского надзора",null,null,null,null,{"$f":"'00'!C6","v":"Название организации, должность, Фамилия И.О."}]
[null,null,null,null,null,"(название организации, должность, ФИО)"]
["Генерального подрядчика",null,null,null,null,{"$f":"'00'!C7","v":"Название организации, должность, Фамилия И.О."}]
[null,null,null,null,null,{"$f":"F9","v":"(название организации, должность, ФИО)"}]
["Заказчика",null,null,null,null,{"$f":"'00'!C8","v":"Название организации, должность, Фамилия И.О."}]
[null,null,null,null,null,{"$f":"F11","v":"(название организации, должность, ФИО)"}]
["Монтажной организации",null,null,null,null,{"$f":"'00'!C9","v":"Название организации, должность, Фамилия И.О."}]
[null,null,null,null,null,{"$f":"F9","v":"(название организации, должность, ФИО)"}]
["Эксплуатирующей организации",null,null,null,null,{"$f":"'00'!C10","v":"Название организации, должность, Фамилия И.О."}]
[null,null,null,null,null,{"$f":"F9","v":"(название организации, должность, ФИО)"}]
[]
["На объекте:"]
[{"$f":"'00'!C1","v":"название объекта"}]
["(указать название объекта)"]
["по адресу:",null,null,{"$f":"'00'!C2","v":"полный адрес объекта"}]
[null,null,null,"(указать адрес объекта)"]
[]
["Составили акт о нижеследующем:"]
["1.","К осведетельствованию предъявлены следующие системы: ",null,null,null,null,null,null,null,null,null,null,null,null,null,null,null,"К5"]
["2.","При выполнении работ выяснено: "]
[null,"Приточная система имеет следующие фактические параметры - 9Па и 1800м3/час"]
[null,"Для нормальной работы системы требуются следующие параметры - 320Па и 9000м3час"]
[]
[]
[]
[{"$f":"A8","v":"Авторского надзора"}]
[{"$f":"F8","v":"Название организации, должность, Фамилия И.О."},null,null,null,null,null,null,null,null,null,"(подпись, расшифровка)"]
[{"$f":"A10","v":"Генерального подрядчика"}]
[{"$f":"F10","v":"Название организации, должность, Фамилия И.О."},null,null,null,null,null,null,null,null,null,{"$f":"K34","v":"(подпись, расшифровка)"}]
[{"$f":"A12","v":"Заказчика"}]
[{"$f":"F12","v":"Название организации, должность, Фамилия И.О."},null,null,null,null,null,null,null,null,null,{"$f":"K36","v":"(подпись, расшифровка)"}]
[{"$f":"A14","v":"Монтажной организации"}]
[{"$f":"F14","v":"Название организации, должность, Фамилия И.О."},null,null,null,null,null,null,null,null,null,{"$f":"K38","v":"(подпись, расшифровка)"}]
[{"$f":"A16","v":"Эксплуатирующей организации"}]
[{"$f":"F16","v":"Название организации, должность, Фамилия И.О."},null,null,null,null,null,null,null,null,null,{"$f":"K40","v":"(подпись, расшифровка)"}]

{"sheet":"25","index":25,"n_rows":38,"n_cols":12,"rows_kept":38,"cut":false,"hidden":false,"merged":[[14,0,14,24],[0,0,0,23],[1,0,1,23],[3,0,3,9],[3,11,3,24],[5,0,5,22],[7,0,8,4],[7,5,7,24],[8,5,8,24],[9,0,10,4],[9,5,9,24],[10,5,10,24],[12,0,12,23],[13,0,13,24],[26,1,26,23],[15,0,15,2],[15,3,15,24],[16,3,16,24],[18,0,18,24],[19,1,19,24],[20,1,20,23],[21,1,21,23],[22,1,22,23],[23,1,23,23],[24,1,24,23],[25,1,25,23],[36,0,36,9],[37,0,37,9],[37,10,37,24],[27,1,27,23],[30,1,30,24],[31,1,31,24],[32,1,32,20],[34,0,34,9],[35,0,35,9],[35,10,35,24]]}
["Акт №______"]
[{"$f":"'00'!C56","v":"Акт передачи оборудования"}]
[]
[{"$f":"'00'!C3","v":"г. Москва"},null,null,null,null,null,null,null,null,null,null,{"$f":"'00'!C4","v":"\"____\"________________ 200__г."}]
[]
["Комиссия в составе представителей:"]
[]
["Генподрядной организации",null,null,null,null,{"$f":"'00'!C7","v":"Название организации, должность, Фамилия И.О."}]
[null,null,null,null,null,"(название организации, должность, ФИО)"]
["Монтажной организации",null,null,null,null,{"$f":"'00'!C9","v":"Название организации, должность, Фамилия И.О."}]
[null,null,null,null,null,{"$f":"F9","v":"(название организации, должность, ФИО)"}]
[]
["На объекте:"]
[{"$f":"'00'!C1","v":"название объекта"}]
["(указать название объекта)"]
["по адресу:",null,null,{"$f":"'00'!C2","v":"полный адрес объекта"}]
[null,null,null,"(указать адрес объекта)"]
[]
["Составили акт о нижеследующем:"]
["1.","К предаче представлены:"]
[null,"1. Пульт для кондиционеров Mitsubishi Electric  MSZ-GС25VA / MUZ-GС25VA - 4шт"]
[null,"2. Пульт для кондиционеров Mitsubishi Electric  MSZ-GС35VA / MUZ-GС35VA - 1шт"]
[null,"3. Кронштейн для установки пультов на стену в комплекте с саморезами - 5шт"]
[null,"4. Батарейки пальчиковые тип ААА - 5компл"]
[]
[]
[]
[]
[]
[null,"Решение комиссии:"]
["1.","Вышеперечисленное оборудование передано в полном объеме"]
[2]
[]
[]
[{"$f":"A8","v":"Генподрядной организации"}]
[{"$f":"F8","v":"Название организации, должность, Фамилия И.О."},null,null,null,null,null,null,null,null,null,{"$f":"'18'!K49:Y49","v":"(подпись, расшифровка)"}]
[{"$f":"A10","v":"Монтажной организации"}]
[{"$f":"F10","v":"Название организации, должность, Фамилия И.О."},null,null,null,null,null,null,null,null,null,{"$f":"K36","v":"(подпись, расшифровка)"}]

{"sheet":"26","index":26,"n_rows":49,"n_cols":19,"rows_kept":49,"cut":false,"hidden":false,"merged":[[45,0,45,9],[46,0,46,9],[46,10,46,24],[47,0,47,9],[48,0,48,9],[48,10,48,24],[41,0,41,9],[42,0,42,9],[42,10,42,24],[43,0,43,9],[44,0,44,9],[44,10,44,24],[40,0,40,9],[40,10,40,24],[24,0,24,12],[25,1,25,17],[25,18,25,24],[26,1,26,24],[27,0,28,0],[27,1,28,24],[31,1,31,20],[33,0,35,0],[33,1,35,24],[36,1,36,24],[39,0,39,9],[22,3,22,24],[13,0,14,4],[13,5,13,24],[14,5,14,24],[15,0,16,4],[15,5,15,24],[16,5,16,24],[18,0,18,23],[19,0,19,24],[20,0,20,24],[21,0,21,2],[21,3,21,24],[9,0,10,4],[9,5,9,24],[10,5,10,24],[11,0,12,4],[11,5,11,24],[12,5,12,24],[7,0,8,4],[7,5,7,24],[8,5,8,24],[0,0,0,23],[1,0,1,23],[3,0,3,9],[3,11,3,24],[5,0,5,22]]}
["Акт №______"]
[{"$f":"'00'!C36","v":"Акт гидравлического испытания системы холодоснабжения."}]
[]
[{"$f":"'00'!C3","v":"г. Москва"},null,null,null,null,null,null,null,null,null,null,{"$f":"'00'!C4","v":"\"____\"________________ 200__г."}]
[]
["Комиссия в составе представителей:"]
[]
["Авторского надзора",null,null,null,null,{"$f":"'00'!C6","v":"Название организации, должность, Фамилия И.О."}]
[null,null,null,null,null,"(название организации, должность, ФИО)"]
["Генерального подрядчика",null,null,null,null,{"$f":"'00'!C7","v":"Название организации, должность, Фамилия И.О."}]
[null,null,null,null,null,{"$f":"F9","v":"(название организации, должность, ФИО)"}]
["Заказчика",null,null,null,null,{"$f":"'00'!C8","v":"Название организации, должность, Фамилия И.О."}]
[null,null,null,null,null,{"$f":"F11","v":"(название организации, должность, ФИО)"}]
["Монтажной организации",null,null,null,null,{"$f":"'00'!C9","v":"Название организации, должность, Фамилия И.О."}]
[null,null,null,null,null,{"$f":"F9","v":"(название организации, должность, ФИО)"}]
["Эксплуатирующей организации",null,null,null,null,{"$f":"'00'!C10","v":"Название организации, должность, Фамилия И.О."}]
[null,null,null,null,null,{"$f":"F9","v":"(название организации, должность, ФИО)"}]
[]
["На объекте:"]
[{"$f":"'00'!C1","v":"название объекта"}]
["(указать название объекта)"]
["по адресу:",null,null,{"$f":"'00'!C2","v":"полный адрес объекта"}]
[null,null,null,"(указать адрес объекта)"]
[]
["Составили настоящий акт о нижеследующем:"]
["1.","Работы выполнены согласно требованиям СНиП и проекта",null,null,null,null,null,null,null,null,null,null,null,null,null,null,null,null,{"$f":"'00'!C12","v":"полный номер объекта"}]
["2.","Испытание проведено манометрическим/гидравлическим методом (ненужное зачеркнуть). давлением   __ атм, в течении ____мин падение давления составило _____атм."]
["3.","Признаков разрыва или нарушения прочности соединения котлов и водонагревателей, капель в сварных швах, резьбовых соединениях, отопительных приборах, на поверхности труб, арматуры и утечки воды через водоразборную арматуру, сливные устройства и т.п. не обнаружено.(ненужное зачеркнуть)."]
[]
[]
[]
[]
[null,"Решение комиссии:"]
["1.","Монтаж выполнен в соответствии с проектной документацией, действующими техническими условиями, стандартами, строительными нормами и правилами производства и приемки работ."]
[]
[]
["2.","Система признается выдержавшей испытание на герметичность."]
[]
[]
[{"$f":"A8","v":"Авторского надзора"}]
[{"$f":"F8","v":"Название организации, должность, Фамилия И.О."},null,null,null,null,null,null,null,null,null,"(подпись, расшифровка)"]
[{"$f":"A10","v":"Генерального подрядчика"}]
[{"$f":"F10","v":"Название организации, должность, Фамилия И.О."},null,null,null,null,null,null,null,null,null,{"$f":"K41","v":"(подпись, расшифровка)"}]
[{"$f":"A12","v":"Заказчика"}]
[{"$f":"F12","v":"Название организации, должность, Фамилия И.О."},null,null,null,null,null,null,null,null,null,{"$f":"K43","v":"(подпись, расшифровка)"}]
[{"$f":"A14","v":"Монтажной организации"}]
[{"$f":"F14","v":"Название организации, должность, Фамилия И.О."},null,null,null,null,null,null,null,null,null,{"$f":"K45","v":"(подпись, расшифровка)"}]
[{"$f":"A16","v":"Эксплуатирующей организации"}]
[{"$f":"F16","v":"Название организации, должность, Фамилия И.О."},null,null,null,null,null,null,null,null,null,{"$f":"K47","v":"(подпись, расшифровка)"}]

{"sheet":"27","index":27,"n_rows":47,"n_cols":19,"rows_kept":47,"cut":false,"hidden":false,"merged":[[43,0,43,9],[44,0,44,9],[44,10,44,24],[45,0,45,9],[46,0,46,9],[46,10,46,24],[39,0,39,9],[40,0,40,9],[40,10,40,24],[41,0,41,9],[42,0,42,9],[42,10,42,24],[31,1,31,20],[33,1,33,24],[34,1,34,24],[37,0,37,9],[38,0,38,9],[38,10,38,24],[28,1,28,24],[18,0,18,23],[19,0,19,24],[20,0,20,24],[21,0,21,2],[21,3,21,24],[22,3,22,24],[24,0,24,12],[25,1,25,17],[25,18,25,24],[26,1,26,24],[27,1,27,24],[13,0,14,4],[13,5,13,24],[14,5,14,24],[15,0,16,4],[15,5,15,24],[16,5,16,24],[9,0,10,4],[9,5,9,24],[10,5,10,24],[11,0,12,4],[11,5,11,24],[12,5,12,24],[7,0,8,4],[7,5,7,24],[8,5,8,24],[0,0,0,23],[1,0,1,23],[3,0,3,9],[3,11,3,24],[5,0,5,22]]}
["Акт №______"]
[{"$f":"'00'!C37","v":"Акт приемки системы холодоснабжения к наладке."}]
[]
[{"$f":"'00'!C3","v":"г. Москва"},null,null,null,null,null,null,null,null,null,null,{"$f":"'00'!C4","v":"\"____\"________________ 200__г."}]
[]
["Комиссия в составе представителей:"]
[]
["Авторского надзора",null,null,null,null,{"$f":"'00'!C6","v":"Название организации, должность, Фамилия И.О."}]
[null,null,null,null,null,"(название организации, должность, ФИО)"]
["Генерального подрядчика",null,null,null,null,{"$f":"'00'!C7","v":"Название организации, должность, Фамилия И.О."}]
[null,null,null,null,null,{"$f":"F9","v":"(название организации, должность, ФИО)"}]
["Заказчика",null,null,null,null,{"$f":"'00'!C8","v":"Название организации, должность, Фамилия И.О."}]
[null,null,null,null,null,{"$f":"F11","v":"(название организации, должность, ФИО)"}]
["Монтажной организации",null,null,null,null,{"$f":"'00'!C9","v":"Название организации, должность, Фамилия И.О."}]
[null,null,null,null,null,{"$f":"F9","v":"(название организации, должность, ФИО)"}]
["Эксплуатирующей организации",null,null,null,null,{"$f":"'00'!C10","v":"Название организации, должность, Фамилия И.О."}]
[null,null,null,null,null,{"$f":"F9","v":"(название организации, должность, ФИО)"}]
[]
["На объекте:"]
[{"$f":"'00'!C1","v":"название объекта"}]
["(указать название объекта)"]
["по адресу:",null,null,{"$f":"'00'!C2","v":"полный адрес объекта"}]
[null,null,null,"(указать адрес объекта)"]
[]
["Составили настоящий акт о нижеследующем:"]
["1.","Работы выполнены согласно требованиям СНиП и проекта",null,null,null,null,null,null,null,null,null,null,null,null,null,null,null,null,{"$f":"'00'!C12","v":"полный номер объекта"}]
["2.","Все противопожарные и санитарно-гигиенические требования выполнены."]
["3.","Мероприятия по звуко- и виброизоляции выполнены в соответствии с рабочими чертежами проекта."]
["4.","Отступлений от проекта и недоделок, препятствующих наладке, не обнаружено."]
[]
[]
[]
[null,"Решение комиссии:"]
["1.","Систему холодоснабжения считать принятой к наладке."]
[]
[]
[]
[{"$f":"A8","v":"Авторского надзора"}]
[{"$f":"F8","v":"Название организации, должность, Фамилия И.О."},null,null,null,null,null,null,null,null,null,"(подпись, расшифровка)"]
[{"$f":"A10","v":"Генерального подрядчика"}]
[{"$f":"F10","v":"Название организации, должность, Фамилия И.О."},null,null,null,null,null,null,null,null,null,{"$f":"K39","v":"(подпись, расшифровка)"}]
[{"$f":"A12","v":"Заказчика"}]
[{"$f":"F12","v":"Название организации, должность, Фамилия И.О."},null,null,null,null,null,null,null,null,null,{"$f":"K41","v":"(подпись, расшифровка)"}]
[{"$f":"A14","v":"Монтажной организации"}]
[{"$f":"F14","v":"Название организации, должность, Фамилия И.О."},null,null,null,null,null,null,null,null,null,{"$f":"K43","v":"(подпись, расшифровка)"}]
[{"$f":"A16","v":"Эксплуатирующей организации"}]
[{"$f":"F16","v":"Название организации, должность, Фамилия И.О."},null,null,null,null,null,null,null,null,null,{"$f":"K45","v":"(подпись, расшифровка)"}]

{"sheet":"28","index":28,"n_rows":47,"n_cols":19,"rows_kept":47,"cut":false,"hidden":false,"merged":[[43,0,43,9],[44,0,44,9],[44,10,44,24],[45,0,45,9],[46,0,46,9],[46,10,46,24],[39,0,39,9],[40,0,40,9],[40,10,40,24],[41,0,41,9],[42,0,42,9],[42,10,42,24],[31,1,31,20],[33,1,33,24],[34,1,34,24],[37,0,37,9],[38,0,38,9],[38,10,38,24],[28,1,28,24],[18,0,18,23],[19,0,19,24],[20,0,20,24],[21,0,21,2],[21,3,21,24],[22,3,22,24],[24,0,24,12],[25,1,25,17],[25,18,25,24],[26,1,26,24],[27,1,27,24],[13,0,14,4],[13,5,13,24],[14,5,14,24],[15,0,16,4],[15,5,15,24],[16,5,16,24],[9,0,10,4],[9,5,9,24],[10,5,10,24],[11,0,12,4],[11,5,11,24],[12,5,12,24],[7,0,8,4],[7,5,7,24],[8,5,8,24],[0,0,0,23],[1,0,1,23],[3,0,3,9],[3,11,3,24],[5,0,5,22]]}
["Акт №______"]
[{"$f":"'00'!C38","v":"Акт приемки системы холодоснабжения к эксплуатации."}]
[]
[{"$f":"'00'!C3","v":"г. Москва"},null,null,null,null,null,null,null,null,null,null,{"$f":"'00'!C4","v":"\"____\"________________ 200__г."}]
[]
["Комиссия в составе представителей:"]
[]
["Авторского надзора",null,null,null,null,{"$f":"'00'!C6","v":"Название организации, должность, Фамилия И.О."}]
[null,null,null,null,null,"(название организации, должность, ФИО)"]
["Генерального подрядчика",null,null,null,null,{"$f":"'00'!C7","v":"Название организации, должность, Фамилия И.О."}]
[null,null,null,null,null,{"$f":"F9","v":"(название организации, должность, ФИО)"}]
["Заказчика",null,null,null,null,{"$f":"'00'!C8","v":"Название организации, должность, Фамилия И.О."}]
[null,null,null,null,null,{"$f":"F11","v":"(название организации, должность, ФИО)"}]
["Монтажной организации",null,null,null,null,{"$f":"'00'!C9","v":"Название организации, должность, Фамилия И.О."}]
[null,null,null,null,null,{"$f":"F9","v":"(название организации, должность, ФИО)"}]
["Эксплуатирующей организации",null,null,null,null,{"$f":"'00'!C10","v":"Название организации, должность, Фамилия И.О."}]
[null,null,null,null,null,{"$f":"F9","v":"(название организации, должность, ФИО)"}]
[]
["На объекте:"]
[{"$f":"'00'!C1","v":"название объекта"}]
["(указать название объекта)"]
["по адресу:",null,null,{"$f":"'00'!C2","v":"полный адрес объекта"}]
[null,null,null,"(указать адрес объекта)"]
[]
["Составили настоящий акт о нижеследующем:"]
["1.","Работы выполнены согласно требованиям СНиП и проекта",null,null,null,null,null,null,null,null,null,null,null,null,null,null,null,null,{"$f":"'00'!C12","v":"полный номер объекта"}]
["2.","Все противопожарные и санитарно-гигиенические требования выполнены."]
["3.","Мероприятия по звуко- и виброизоляции выполнены в соответствии с рабочими чертежами проекта."]
["4.","Отступлений от проекта и недоделок, препятствующих нормальной эксплуатации, не обнаружено."]
[]
[]
[]
[null,"Решение комиссии:"]
["1.","Систему холодоснабжения считать принятой к эксплуатации."]
[]
[]
[]
[{"$f":"A8","v":"Авторского надзора"}]
[{"$f":"F8","v":"Название организации, должность, Фамилия И.О."},null,null,null,null,null,null,null,null,null,"(подпись, расшифровка)"]
[{"$f":"A10","v":"Генерального подрядчика"}]
[{"$f":"F10","v":"Название организации, должность, Фамилия И.О."},null,null,null,null,null,null,null,null,null,{"$f":"K39","v":"(подпись, расшифровка)"}]
[{"$f":"A12","v":"Заказчика"}]
[{"$f":"F12","v":"Название организации, должность, Фамилия И.О."},null,null,null,null,null,null,null,null,null,{"$f":"K41","v":"(подпись, расшифровка)"}]
[{"$f":"A14","v":"Монтажной организации"}]
[{"$f":"F14","v":"Название организации, должность, Фамилия И.О."},null,null,null,null,null,null,null,null,null,{"$f":"K43","v":"(подпись, расшифровка)"}]
[{"$f":"A16","v":"Эксплуатирующей организации"}]
[{"$f":"F16","v":"Название организации, должность, Фамилия И.О."},null,null,null,null,null,null,null,null,null,{"$f":"K45","v":"(подпись, расшифровка)"}]

{"sheet":"29","index":29,"n_rows":47,"n_cols":19,"rows_kept":47,"cut":false,"hidden":false,"merged":[[43,0,43,9],[44,0,44,9],[44,10,44,24],[45,0,45,9],[46,0,46,9],[46,10,46,24],[39,0,39,9],[40,0,40,9],[40,10,40,24],[41,0,41,9],[42,0,42,9],[42,10,42,24],[31,1,31,20],[33,1,33,24],[34,1,34,24],[37,0,37,9],[38,0,38,9],[38,10,38,24],[28,1,28,24],[18,0,18,23],[19,0,19,24],[20,0,20,24],[21,0,21,2],[21,3,21,24],[22,3,22,24],[24,0,24,12],[25,1,25,17],[25,18,25,24],[26,1,26,24],[27,1,27,24],[13,0,14,4],[13,5,13,24],[14,5,14,24],[15,0,16,4],[15,5,15,24],[16,5,16,24],[9,0,10,4],[9,5,9,24],[10,5,10,24],[11,0,12,4],[11,5,11,24],[12,5,12,24],[7,0,8,4],[7,5,7,24],[8,5,8,24],[0,0,0,23],[1,0,1,23],[3,0,3,9],[3,11,3,24],[5,0,5,22]]}
["Акт №______"]
[{"$f":"'00'!C39","v":"Акт промывки системы холодоснабжения."}]
[]
[{"$f":"'00'!C3","v":"г. Москва"},null,null,null,null,null,null,null,null,null,null,{"$f":"'00'!C4","v":"\"____\"________________ 200__г."}]
[]
["Комиссия в составе представителей:"]
[]
["Авторского надзора",null,null,null,null,{"$f":"'00'!C6","v":"Название организации, должность, Фамилия И.О."}]
[null,null,null,null,null,"(название организации, должность, ФИО)"]
["Генерального подрядчика",null,null,null,null,{"$f":"'00'!C7","v":"Название организации, должность, Фамилия И.О."}]
[null,null,null,null,null,{"$f":"F9","v":"(название организации, должность, ФИО)"}]
["Заказчика",null,null,null,null,{"$f":"'00'!C8","v":"Название организации, должность, Фамилия И.О."}]
[null,null,null,null,null,{"$f":"F11","v":"(название организации, должность, ФИО)"}]
["Монтажной организации",null,null,null,null,{"$f":"'00'!C9","v":"Название организации, должность, Фамилия И.О."}]
[null,null,null,null,null,{"$f":"F9","v":"(название организации, должность, ФИО)"}]
["Эксплуатирующей организации",null,null,null,null,{"$f":"'00'!C10","v":"Название организации, должность, Фамилия И.О."}]
[null,null,null,null,null,{"$f":"F9","v":"(название организации, должность, ФИО)"}]
[]
["На объекте:"]
[{"$f":"'00'!C1","v":"название объекта"}]
["(указать название объекта)"]
["по адресу:",null,null,{"$f":"'00'!C2","v":"полный адрес объекта"}]
[null,null,null,"(указать адрес объекта)"]
[]
["Составили настоящий акт о нижеследующем:"]
["1.","Работы выполнены согласно требованиям СНиП и проекта",null,null,null,null,null,null,null,null,null,null,null,null,null,null,null,null,{"$f":"'00'!C12","v":"полный номер объекта"}]
["2.","Была произведена промывка системы отопления диаметр ввода _____, давление ____, длина ввода ____, диаметр сливного отверстия _____, время промывки _____"]
[]
[]
[]
[]
[]
[null,"Решение комиссии:"]
["1.","Система холодоснабжения промыта в полном объеме."]
[]
[]
[]
[{"$f":"A8","v":"Авторского надзора"}]
[{"$f":"F8","v":"Название организации, должность, Фамилия И.О."},null,null,null,null,null,null,null,null,null,"(подпись, расшифровка)"]
[{"$f":"A10","v":"Генерального подрядчика"}]
[{"$f":"F10","v":"Название организации, должность, Фамилия И.О."},null,null,null,null,null,null,null,null,null,{"$f":"K39","v":"(подпись, расшифровка)"}]
[{"$f":"A12","v":"Заказчика"}]
[{"$f":"F12","v":"Название организации, должность, Фамилия И.О."},null,null,null,null,null,null,null,null,null,{"$f":"K41","v":"(подпись, расшифровка)"}]
[{"$f":"A14","v":"Монтажной организации"}]
[{"$f":"F14","v":"Название организации, должность, Фамилия И.О."},null,null,null,null,null,null,null,null,null,{"$f":"K43","v":"(подпись, расшифровка)"}]
[{"$f":"A16","v":"Эксплуатирующей организации"}]
[{"$f":"F16","v":"Название организации, должность, Фамилия И.О."},null,null,null,null,null,null,null,null,null,{"$f":"K45","v":"(подпись, расшифровка)"}]

{"sheet":"30","index":30,"n_rows":53,"n_cols":12,"rows_kept":53,"cut":false,"hidden":false,"merged":[[31,1,31,24],[32,1,32,24],[33,1,33,24],[34,1,34,24],[35,1,35,24],[36,1,36,24],[49,0,49,9],[50,0,50,9],[50,10,50,24],[51,0,51,9],[40,1,40,24],[41,1,41,24],[43,0,43,9],[44,0,44,9],[44,10,44,24],[52,0,52,9],[52,10,52,24],[45,0,45,9],[46,0,46,9],[46,10,46,24],[47,0,47,9],[48,0,48,9],[48,10,48,24],[30,1,30,24],[18,0,18,23],[19,0,19,24],[20,0,20,24],[21,0,21,2],[21,3,21,24],[22,3,22,24],[24,0,24,12],[27,1,27,24],[26,1,26,8],[28,1,28,24],[29,1,29,24],[13,0,14,4],[13,5,13,24],[14,5,14,24],[15,0,16,4],[15,5,15,24],[16,5,16,24],[9,0,10,4],[9,5,9,24],[10,5,10,24],[11,0,12,4],[11,5,11,24],[12,5,12,24],[7,0,8,4],[7,5,7,24],[8,5,8,24],[0,0,0,23],[1,0,1,23],[3,0,3,9],[3,11,3,24],[5,0,5,22]]}
["Акт №______"]
[{"$f":"'00'!C57","v":"Акт приемки дополнительных работ"}]
[]
[{"$f":"'00'!C3","v":"г. Москва"},null,null,null,null,null,null,null,null,null,null,{"$f":"'00'!C4","v":"\"____\"________________ 200__г."}]
[]
["Комиссия в составе представителей:"]
[]
["Авторского надзора",null,null,null,null,{"$f":"'00'!C6","v":"Название организации, должность, Фамилия И.О."}]
[null,null,null,null,null,"(название организации, должность, ФИО)"]
["Генерального подрядчика",null,null,null,null,{"$f":"'00'!C7","v":"Название организации, должность, Фамилия И.О."}]
[null,null,null,null,null,{"$f":"F9","v":"(название организации, должность, ФИО)"}]
["Заказчика",null,null,null,null,{"$f":"'00'!C8","v":"Название организации, должность, Фамилия И.О."}]
[null,null,null,null,null,{"$f":"F11","v":"(название организации, должность, ФИО)"}]
["Монтажной организации",null,null,null,null,{"$f":"'00'!C9","v":"Название организации, должность, Фамилия И.О."}]
[null,null,null,null,null,{"$f":"F9","v":"(название организации, должность, ФИО)"}]
["Эксплуатирующей организации",null,null,null,null,{"$f":"'00'!C10","v":"Название организации, должность, Фамилия И.О."}]
[null,null,null,null,null,{"$f":"F9","v":"(название организации, должность, ФИО)"}]
[]
["На объекте:"]
[{"$f":"'00'!C1","v":"название объекта"}]
["(указать название объекта)"]
["по адресу:",null,null,{"$f":"'00'!C2","v":"полный адрес объекта"}]
[null,null,null,"(указать адрес объекта)"]
[]
["Составили настоящий акт о нижеследующем:"]
[null,"Что были произведены следующие дополнительные работы не учтенные в проекте"]
[null,{"$f":"'00'!C12","v":"полный номер объекта"}]
["1.","Воздуховоды из оцинкованной стали круглого сечения - 10м2"]
["2.","Установка диффузора Ø125 - 6шт"]
["3.","Установка диффузора Ø160 - 6шт"]
["4.","Демонтаж прямоугольных воздуховодов - 28м2"]
["5.","Монтаж прямоугольных воздуховодов - 28м2"]
["6."]
["7."]
["8."]
["9."]
["10."]
[]
[]
[null,"Решение комиссии:"]
["1.","Считать дополнительные работы выполненными в полном объеме"]
[]
[]
[{"$f":"A8","v":"Авторского надзора"}]
[{"$f":"F8","v":"Название организации, должность, Фамилия И.О."},null,null,null,null,null,null,null,null,null,"(подпись, расшифровка)"]
[{"$f":"A10","v":"Генерального подрядчика"}]
[{"$f":"F10","v":"Название организации, должность, Фамилия И.О."},null,null,null,null,null,null,null,null,null,{"$f":"K45","v":"(подпись, расшифровка)"}]
[{"$f":"A12","v":"Заказчика"}]
[{"$f":"F12","v":"Название организации, должность, Фамилия И.О."},null,null,null,null,null,null,null,null,null,{"$f":"K47","v":"(подпись, расшифровка)"}]
[{"$f":"A14","v":"Монтажной организации"}]
[{"$f":"F14","v":"Название организации, должность, Фамилия И.О."},null,null,null,null,null,null,null,null,null,{"$f":"K49","v":"(подпись, расшифровка)"}]
[{"$f":"A16","v":"Эксплуатирующей организации"}]
[{"$f":"F16","v":"Название организации, должность, Фамилия И.О."},null,null,null,null,null,null,null,null,null,{"$f":"K51","v":"(подпись, расшифровка)"}]

{"sheet":"31","index":31,"n_rows":48,"n_cols":21,"rows_kept":48,"cut":false,"hidden":false,"merged":[[5,0,5,22],[0,0,0,23],[1,0,1,23],[2,18,2,24],[3,0,3,9],[3,11,3,24],[7,0,8,4],[7,5,7,24],[8,5,8,24],[9,0,10,4],[9,5,9,24],[10,5,10,24],[20,0,20,24],[11,0,12,4],[11,5,11,24],[12,5,12,24],[13,0,14,4],[13,5,13,24],[14,5,14,24],[15,0,16,4],[15,5,15,24],[16,5,16,24],[18,0,18,23],[19,0,19,24],[39,10,39,24],[40,0,40,9],[41,0,41,9],[41,10,41,24],[21,0,21,2],[21,3,21,24],[22,3,22,24],[46,0,46,9],[47,0,47,9],[47,10,47,24],[24,0,24,24],[26,0,26,5],[25,0,25,19],[25,20,25,24],[28,0,28,24],[42,0,42,9],[43,0,43,9],[43,10,43,24],[44,0,44,9],[45,0,45,9],[45,10,45,24],[38,0,38,9],[39,0,39,9],[35,0,35,18],[29,1,29,24],[30,1,30,24],[32,0,32,24],[33,0,33,10],[34,0,34,24]]}
["Акт №______"]
[{"$f":"'00'!C22","v":"Акт приемки систем приточно-вытяжной вентиляции."}]
[null,null,null,null,null,null,null,null,null,null,null,null,null,null,null,null,null,null,"Мосгосстройнадзор"]
[{"$f":"'00'!C3","v":"г. Москва"},null,null,null,null,null,null,null,null,null,null,{"$f":"'00'!C4","v":"\"____\"________________ 200__г."}]
[]
["Комиссия в составе представителей:"]
[]
["Авторского надзора",null,null,null,null,{"$f":"'00'!C6","v":"Название организации, должность, Фамилия И.О."}]
[null,null,null,null,null,"(название организации, должность, ФИО)"]
["Генерального подрядчика",null,null,null,null,{"$f":"'00'!C7","v":"Название организации, должность, Фамилия И.О."}]
[null,null,null,null,null,{"$f":"F9","v":"(название организации, должность, ФИО)"}]
["Заказчика",null,null,null,null,{"$f":"'00'!C8","v":"Название организации, должность, Фамилия И.О."}]
[null,null,null,null,null,{"$f":"F11","v":"(название организации, должность, ФИО)"}]
["Монтажной организации",null,null,null,null,{"$f":"'00'!C9","v":"Название организации, должность, Фамилия И.О."}]
[null,null,null,null,null,{"$f":"F9","v":"(название организации, должность, ФИО)"}]
["Эксплуатирующей организации",null,null,null,null,{"$f":"'00'!C10","v":"Название организации, должность, Фамилия И.О."}]
[null,null,null,null,null,{"$f":"F9","v":"(название организации, должность, ФИО)"}]
[]
["произвели  приемку систем приточно-вытяжной вентиляции в здании:"]
[{"$f":"'00'!C1","v":"название объекта"}]
["(указать название объекта)"]
["по адресу:",null,null,{"$f":"'00'!C2","v":"полный адрес объекта"}]
[null,null,null,"(указать адрес объекта)"]
[]
["Осмотром вентиляционных систем и проверкой установленного оборудования в действии "]
["установлено, что вентиляционные системы выполнены согласно проекту",null,null,null,null,null,null,null,null,null,null,null,null,null,null,null,null,null,null,null,{"$f":"'00'!C12","v":"полный номер объекта"}]
[" и СНиП."]
[]
["Подрядчиком и заказчиком представлена следующая документация:"]
["1.","акт индивидуального испытания оборудования"]
["2.","паспорт вентиляционной системы"]
[]
["На основании осмотра, проверки в действии и предъявленной документации системы "]
["приточно-вытяжной вентиляции здания:"]
[{"$f":"A20","v":"название объекта"}]
["считать принятыми и допущенными к эксплуатационной наладке."]
[]
[]
[{"$f":"A8","v":"Авторского надзора"}]
[{"$f":"F8","v":"Название организации, должность, Фамилия И.О."},null,null,null,null,null,null,null,null,null,"(подпись, расшифровка)"]
[{"$f":"A10","v":"Генерального подрядчика"}]
[{"$f":"F10","v":"Название организации, должность, Фамилия И.О."},null,null,null,null,null,null,null,null,null,{"$f":"K40","v":"(подпись, расшифровка)"}]
[{"$f":"A12","v":"Заказчика"}]
[{"$f":"F12","v":"Название организации, должность, Фамилия И.О."},null,null,null,null,null,null,null,null,null,{"$f":"K42","v":"(подпись, расшифровка)"}]
[{"$f":"A14","v":"Монтажной организации"}]
[{"$f":"F14","v":"Название организации, должность, Фамилия И.О."},null,null,null,null,null,null,null,null,null,{"$f":"K44","v":"(подпись, расшифровка)"}]
[{"$f":"A16","v":"Эксплуатирующей организации"}]
[{"$f":"F16","v":"Название организации, должность, Фамилия И.О."},null,null,null,null,null,null,null,null,null,{"$f":"K46","v":"(подпись, расшифровка)"}]

{"sheet":"32","index":32,"n_rows":52,"n_cols":29,"rows_kept":52,"cut":false,"hidden":false,"merged":[[41,0,41,1],[41,2,41,10],[41,11,41,14],[41,15,41,18],[41,19,41,21],[41,22,41,24],[40,0,40,1],[40,2,40,10],[40,11,40,14],[40,15,40,18],[40,19,40,21],[40,22,40,24],[39,0,39,1],[39,2,39,10],[39,11,39,14],[39,15,39,18],[39,19,39,21],[39,22,39,24],[38,0,38,1],[38,2,38,10],[38,11,38,14],[38,15,38,18],[38,19,38,21],[38,22,38,24],[37,0,37,1],[37,2,37,10],[37,11,37,14],[37,15,37,18],[37,19,37,21],[37,22,37,24],[36,0,36,1],[36,2,36,10],[36,11,36,14],[36,15,36,18],[36,19,36,21],[36,22,36,24],[35,0,35,1],[35,2,35,10],[35,11,35,14],[35,15,35,18],[35,19,35,21],[35,22,35,24],[34,0,34,1],[34,2,34,10],[34,11,34,14],[34,15,34,18],[34,19,34,21],[34,22,34,24],[33,0,33,1],[33,2,33,10],[33,11,33,14],[33,15,33,18],[33,19,33,21],[33,22,33,24],[32,0,32,1],[32,2,32,10],[32,11,32,14],[32,15,32,18],[32,19,32,21],[32,22,32,24],[31,0,31,1],[31,2,31,10],[31,11,31,14],[31,15,31,18],[31,19,31,21],[31,22,31,24],[30,0,30,1],[30,2,30,10],[30,11,30,14],[30,15,30,18],[30,19,30,21],[30,22,30,24],[28,19,28,21],[28,22,28,24],[29,0,29,1],[29,2,29,10],[29,11,29,14],[29,15,29,18],[29,19,29,21],[29,22,29,24],[27,0,27,1],[27,2,27,10],[27,11,27,14],[27,15,27,18],[27,19,27,21],[27,22,27,24],[26,0,26,1],[26,2,26,10],[26,11,26,14],[26,15,26,18],[26,19,26,21],[26,22,26,24],[25,0,25,1],[25,2,25,10],[25,11,25,14],[25,15,25,18],[25,19,25,21],[25,22,25,24],[20,19,20,24],[20,11,20,18],[21,19,22,21],[21,22,22,24],[24,0,24,1],[24,2,24,10],[24,11,24,14],[24,15,24,18],[24,19,24,21],[24,22,24,24],[20,0,22,1],[20,2,22,10],[21,11,22,14],[21,15,22,18],[6,0,6,22],[51,0,51,9],[51,10,51,24],[48,0,48,9],[49,0,49,9],[49,10,49,24],[50,0,50,9],[28,0,28,1],[28,2,28,10],[28,11,28,14],[28,15,28,18],[23,0,23,24],[15,0,15,2],[15,3,15,24],[16,3,16,24],[13,0,13,24],[14,0,14,24],[12,0,12,24],[7,0,8,4],[7,5,7,24],[8,5,8,24],[9,0,10,4],[9,5,9,24],[10,5,10,24],[0,0,0,23],[1,0,1,23],[2,18,2,24],[3,0,3,9],[3,11,3,24]]}
["Акт №______"]
[{"$f":"'00'!C58","v":"Проверки эффективности работы вентиляционных систем"}]
[]
[{"$f":"'00'!C3","v":"г. Москва"},null,null,null,null,null,null,null,null,null,null,{"$f":"'00'!C4","v":"\"____\"________________ 200__г."}]
[]
[]
["Комиссия в составе представителей:"]
["Заказчика",null,null,null,null,{"$f":"'00'!C8","v":"Название организации, должность, Фамилия И.О."}]
[null,null,null,null,null,{"$f":"'31'!F17:Y17","v":"(название организации, должность, ФИО)"}]
["Монтажной организации",null,null,null,null,{"$f":"'00'!C9","v":"Название организации, должность, Фамилия И.О."}]
[null,null,null,null,null,{"$f":"F9","v":"(название организации, должность, ФИО)"}]
[]
["произвели проверку эффективности работы вентиляционных систем в здании:"]
[{"$f":"'00'!C1","v":"название объекта"}]
["(указать название объекта)"]
["по адресу:",null,null,{"$f":"'00'!C2","v":"полный адрес объекта"}]
[null,null,null,"(указать адрес объекта)"]
[]
["При проверке были получены следующие данные"]
[]
["№",null,"Наименование помещения",null,null,null,null,null,null,null,null,"Воздухообмен",null,null,null,null,null,null,null,"Кратность"]
[null,null,null,null,null,null,null,null,null,null,null,"Приток м3/час",null,null,null,"Вытяжка м3/час",null,null,null,"Приток",null,null,"Вытяжка",null,null,"Высота","Длина","ширина","Объем"]
[]
[]
[1,null,"Процедурная",null,null,null,null,null,null,null,null,1067,null,null,null,645,null,null,null,{"$f":"ROUND(L25/AC25,0)","v":10},null,null,{"$f":"ROUND(P25/AC25,0)","v":6},null,null,3,7,5,{"$f":"AB25*AA25*Z25","v":105}]
[{"$f":"A25+1","v":2},null,"Фотолаборатория",null,null,null,null,null,null,null,null,55,null,null,null,253,null,null,null,{"$f":"ROUND(L26/AC26,0)","v":2},null,null,{"$f":"ROUND(P26/AC26,0)","v":7},null,null,{"$f":"Z25","v":3},3,4,{"$f":"AB26*AA26*Z26","v":36}]
[{"$f":"A26+1","v":3},null,"Пультовая",null,null,null,null,null,null,null,null,0,null,null,null,0,null,null,null,0,null,null,0,null,null,{"$f":"Z26","v":3},3,3,27]
[4,null,"Кабинет врача",null,null,null,null,null,null,null,null,0,null,null,null,0,null,null,null,0,null,null,0,null,null,3,2,5,30]
[5,null,null,null,null,null,null,null,null,null,null,null,null,null,null,null,null,null,null,null,null,null,null,null,null,3,null,null,0]
[6,null,null,null,null,null,null,null,null,null,null,null,null,null,null,null,null,null,null,null,null,null,null,null,null,3,null,null,0]
[7,null,null,null,null,null,null,null,null,null,null,null,null,null,null,null,null,null,null,null,null,null,null,null,null,3,null,null,0]
[8,null,null,null,null,null,null,null,null,null,null,null,null,null,null,null,null,null,null,null,null,null,null,null,null,3,null,null,0]
[9,null,null,null,null,null,null,null,null,null,null,null,null,null,null,null,null,null,null,null,null,null,null,null,null,3,null,null,0]
[10,null,null,null,null,null,null,null,null,null,null,null,null,null,null,null,null,null,null,null,null,null,null,null,null,3,null,null,0]
[11,null,null,null,null,null,null,null,null,null,null,null,null,null,null,null,null,null,null,null,null,null,null,null,null,3,null,null,0]
[12,null,null,null,null,null,null,null,null,null,null,null,null,null,null,null,null,null,null,null,null,null,null,null,null,3,null,null,0]
[13,null,null,null,null,null,null,null,null,null,null,null,null,null,null,null,null,null,null,null,null,null,null,null,null,3,null,null,0]
[14,null,null,null,null,null,null,null,null,null,null,null,null,null,null,null,null,null,null,null,null,null,null,null,null,3,null,null,0]
[15,null,null,null,null,null,null,null,null,null,null,null,null,null,null,null,null,null,null,null,null,null,null,null,null,3,null,null,0]
[16,null,null,null,null,null,null,null,null,null,null,null,null,null,null,null,null,null,null,null,null,null,null,null,null,3,null,null,0]
[17,null,null,null,null,null,null,null,null,null,null,null,null,null,null,null,null,null,null,null,null,null,null,null,null,3,null,null,0]
[18,null,null,null,null,null,null,null,null,null,null,null,null,null,null,null,null,null,null,null,null,null,null,null,null,3,null,null,0]
[]
["Решение комиссии:"]
[]
["Кратность воздухообмена соответствует требованиям СНиП и СанПин"]
[]
[]
[{"$f":"A8","v":"Заказчика"}]
[{"$f":"F8","v":"Название организации, должность, Фамилия И.О."},null,null,null,null,null,null,null,null,null,{"$f":"'31'!K40:Y40","v":"(подпись, расшифровка)"}]
[{"$f":"A10","v":"Монтажной организации"}]
[{"$f":"F10","v":"Название организации, должность, Фамилия И.О."},null,null,null,null,null,null,null,null,null,{"$f":"K50","v":"(подпись, расшифровка)"}]